{"text_format":"2","workbook":"xlsx","n_sheets":5,"sheets":["SEK - Safesprings tjänster 2024","NOK - Safespring tjenester 2024","DKK - Safespring-tjenester 2024","EUR - Safespring services 2024","Data"],"not_rendered":{"charts":0,"images":1,"macros":0,"external_links":0,"defined_names":200,"comments":0,"pivot_tables":0},"unopened":[],"bounds":{"document_bytes":16777216,"sheet_cells":100000,"run_cost":"one","rows_first":2000,"rows_last":500,"rows_between":2000,"halvings":0,"cell_chars":16384,"cell_head_chars":4096},"cells_cut":0,"cells_raw":0,"read":"whole","date_system":"1900"}

{"sheet":"SEK - Safesprings tjänster 2024","index":0,"n_rows":227,"n_cols":11,"rows_kept":227,"cut":false,"hidden":false,"merged":[[169,1,169,5],[170,1,170,5],[204,1,206,6],[207,1,207,5],[133,2,133,3],[133,4,133,5],[133,6,133,7],[138,1,140,6],[166,1,168,6],[131,2,131,3],[131,4,131,5],[131,6,131,7],[132,2,132,3],[132,4,132,5],[132,6,132,7],[105,3,105,4],[105,5,105,6],[105,7,105,8],[109,1,111,6],[124,1,126,6],[103,3,103,4],[103,5,103,6],[103,7,103,8],[104,3,104,4],[104,5,104,6],[104,7,104,8],[101,3,101,4],[101,5,101,6],[101,7,101,8],[102,3,102,4],[102,5,102,6],[102,7,102,8],[59,1,59,4],[69,1,69,4],[86,1,88,10],[99,3,99,4],[99,5,99,6],[99,7,99,8],[3,1,3,2],[14,1,16,6],[18,1,18,5],[23,1,23,4],[44,1,44,4]]}
[]
[]
[]
[]
[null,"Priskalkylator 2024-05-06"]
[]
[]
[null,"Kontakta Safespring",null,"Valuta"]
[null,"Telefon: 08-55 10 73 56"]
[null,"hello@safespring.com"]
[]
[]
[]
[]
[null,"Safespring Compute | IaaS"]
[]
[]
[null,"Infrastruktur kan köras med en Open Source-licens eller med en Windows-licens"]
[null,"Alla priser är angivna i SEK, exklusive moms."]
[null,"Instruktioner: Fyll i önskad kvantitet i de färgade fälten. "]
[]
[]
[null,"Flavors med lokal NVMe-disk"]
[null,"Central blocklagring kan köpas till instanserna. Se \"Central blocklagring\" i prislistan."]
[null,"Produkt ID","vCPU","RAM (GB)","Lokal disk (GB)","Per timme","Per 30 dagar",null,"Antal instanser",null,"Infrastruktur"]
[null,"FLAVOR-l2. c2 r4. 100",2,4,100,{"$f":"G26/720","v":0.66666666666666663},{"$f":"C26*IAAS_vcpu_SEK+D26*IAAS_ram_SEK+E26*IAAS_nvme_SEK","v":480},null,null,null,{"$f":"ROUNDUP(I26*G26,2)","v":0}]
[null,"FLAVOR-l2. c2 r4. 500",2,4,500,1.2222222222222223,880,null,null,null,0]
[null,"FLAVOR-l2. c2 r4. 1000",2,4,1000,1.9166666666666667,1380,null,null,null,0]
[null,"FLAVOR-l2. c4 r8. 100",4,8,100,1.1944444444444444,860,null,null,null,0]
[null,"FLAVOR-l2. c4 r8. 500",4,8,500,1.75,1260,null,null,null,0]
[null,"FLAVOR-l2. c4 r8. 1000",4,8,1000,2.4444444444444446,1760,null,null,null,0]
[null,"FLAVOR-l2. c8 r16. 100",8,16,100,2.25,1620,null,null,null,0]
[null,"FLAVOR-l2. c8 r16. 500",8,16,500,2.8055555555555554,2020,null,null,null,0]
[null,"FLAVOR-l2. c8 r16. 1000",8,16,1000,3.5,2520,null,null,null,0]
[null,"FLAVOR-l2. c16 r32. 100",16,32,100,4.3611111111111107,3140,null,null,null,0]
[null,"FLAVOR-l2. c16 r32. 500",16,32,500,4.916666666666667,3540,null,null,null,0]
[null,"FLAVOR-l2. c16 r32. 1000",16,32,1000,5.6111111111111107,4040,null,null,null,0]
[null,"FLAVOR-l2. c16 r64. 500",16,64,500,7.3611111111111107,5300,null,null,null,0]
[null,"FLAVOR-l2. c32 r64. 1000",32,64,1000,9.8333333333333339,7080,null,null,null,0]
[null,"Totalt",{"$f":"SUM(C26:C39*I26:I39)&\" st\"","v":"0 st"},{"$f":"SUM(D26:D39*I26:I39)&\" GB\"","v":"0 GB"},{"$f":"SUM(E26:E39*I26:I39)&\" GB\"","v":"0 GB"},null,null,null,{"$f":"SUM(I26:I39)&\" st\"","v":"0 st"},null,{"$f":"SUM(K26:K39)","v":0}]
[]
[]
[]
[null,"Flavors utan lokal disk"]
[null,"Central blocklagring kan köpas till instanserna. Se \"Central blocklagring\" i prislistan."]
[null,"Produkt ID","vCPU","RAM (GB)","Lokal disk (GB)","Per timme","Per 30 dagar",null,"Antal instanser",null,"Infrastruktur"]
[null,"FLAVOR-b2. c1 r2",1,2,0,0.2638888888888889,{"$f":"C47*IAAS_vcpu_SEK+D47*IAAS_ram_SEK+E47*IAAS_ssd_SEK","v":190},null,null,null,{"$f":"ROUNDUP(I47*G47,2)","v":0}]
[null,"FLAVOR-b2. c1 r4",1,4,0,0.41666666666666669,300,null,null,null,0]
[null,"FLAVOR-b2. c2 r4",2,4,0,0.52777777777777779,380,null,null,null,0]
[null,"FLAVOR-b2. c2 r8",2,8,0,0.83333333333333337,600,null,null,null,0]
[null,"FLAVOR-b2 .c4 r8",4,8,0,1.0555555555555556,760,null,null,null,0]
[null,"FLAVOR-b2. c4 r16",4,16,0,1.6666666666666667,1200,null,null,null,0]
[null,"FLAVOR-b2. c8 r16",8,16,0,2.1111111111111112,1520,null,null,null,0]
[null,"FLAVOR-b2. c8 r32",8,32,0,3.3333333333333335,2400,null,null,null,0]
[null,"FLAVOR-b2. c16 r32",16,32,0,4.2222222222222223,3040,null,null,null,0]
[null,"FLAVOR-b2. c16 r64",16,64,0,6.666666666666667,4800,null,null,null,0]
[null,"Totalt",{"$f":"SUM(b2_list_vCPU*b2_list_Antal_instanser)&\" st\"","v":"0 st"},{"$f":"SUM(b2_list_ram*b2_list_vCPU)&\" GB\"","v":"0 GB"},"N/A",null,null,null,{"$f":"SUM(I47:I56)&\" st\"","v":"0 st"},null,{"$f":"SUM(K47:K56)","v":0}]
[]
[null,"Instanser med GPU och lokal disk (NVME-disk)"]
[null,"Central blocklagring kan köpas till instanserna. Se \"Central blocklagring\" i prislistan."]
[null,"Produkt ID","CPU (p) core","RAM (GB)","NVME (GB)","GPU","Per timme","Per 30 dagar","Antal instanser",null,"Infrastruktur"]
[null,"INSTANCE-glm.large.1d",4,16,250,1,{"$f":"H62/720","v":9.6527777777777786},{"$f":"C62*IAAS_vcpu_SEK+D62*IAAS_ram_SEK+E62*IAAS_nvme_SEK+F62*IAAS_gpu_SEK","v":6950},null,null,{"$f":"ROUNDUP(I62*H62,2)","v":0}]
[null,"INSTANCE-glm.xlarge.2d",8,32,500,2,19.305555555555557,13900,null,null,0]
[null,"INSTANCE-glm.2xlarge.4d",16,64,1000,4,38.611111111111114,27800,null,null,0]
[null,"INSTANCE-glm.4xlarge.8d",32,128,1000,6,60.555555555555557,43600,null,null,0]
[null,"Totalt",{"$f":"SUM(I62:I65*C62:C65)&\" st\"","v":"0 st"},{"$f":"SUM(I62:I65*D62:D65)&\" GB\"","v":"0 GB"},{"$f":"SUM(I62:I65*E62:E65)&\" GB\"","v":"0 GB"},{"$f":"SUM(I62:I65*F62:F65)&\" st\"","v":"0 st"},null,null,{"$f":"SUM(I62:I65)&\" st\"","v":"0 st"},null,{"$f":"SUM(K62:K65)","v":0}]
[]
[]
[null,"Bare Metal Compute "]
[null,"Central blocklagring kan köpas till instanserna. Se \"Central blocklagring\" i prislistan."]
[null,"Produkt ID","CPU (p) core","RAM (GB)","NVME (GB)","Per timme","Per 30 dagar",null,"Antal",null,"Infrastruktur"]
[null,"INSTANCE-p1.2xlarge.16d",16,128,3800,{"$f":"G72/720","v":9.5},{"$f":"INSTANCE_p1.2xlarge.16d_SEK","v":6840},null,null,null,{"$f":"ROUNDUP(I72*G72,2)","v":0}]
[null,"INSTANCE-p1.4xlarge.16d",32,256,3800,19,{"$f":"INSTANCE_p1.4xlarge.16d_SEK","v":13680},null,null,null,0]
[null,"INSTANCE-p1.8xlarge.32d",64,512,7600,38,{"$f":"INSTANCE_p1.8xlarge.32d_SEK","v":27360},null,null,null,0]
[null,"Totalt",{"$f":"SUM(I72:I74*C72:C74)&\" st\"","v":"0 st"},{"$f":"SUM(I72:I74*D72:D74)&\" GB\"","v":"0 GB"},{"$f":"SUM(I72:I74*E72:E74)&\" GB\"","v":"0 GB"},null,null,null,{"$f":"SUM(I72:I74)&\" st\"","v":"0 st"},null,{"$f":"SUM(K72:K74)","v":0}]
[]
[]
[null,"Central blocklagring"]
[null,"Central blocklagring ger tre kopior av datat utspritt i ett robust CEPH-kluster."]
[null,"Produkt ID","Beskrivning",null,null,"Per timme","Per 30 dagar",null,"Extra GB",null,"Lagring"]
[null,"VOLUME-large","HDD-backed 3-replica Ceph",null,null,1.6666666666666666E-3,{"$f":"VOLUME_large_SEK","v":1.2},null,null,null,{"$f":"ROUNDUP(I81*G81,2)","v":0}]
[null,"VOLUME-fast","SSD-backed 3-replica Ceph",null,null,5.0000000000000001E-3,{"$f":"VOLUME_fast_SEK","v":3.6},null,null,null,0]
[null,"VOLUME-snapshot","Snapshot of image",null,null,1.6666666666666666E-3,{"$f":"VOLUME_large_SEK","v":1.2},null,null,null,0]
[null,"Totalt",{"$nulls":6},{"$f":"SUM(I81:I83)&\" GB\"","v":"0 GB"},null,{"$f":"SUM(K81:K83)","v":0}]
[]
[]
[null,"Safespring Storage | S3"]
[]
[]
[null,"Kontaka oss för rabatter vid större lagringsmängder. Prismodell baserat på antal lagrade TB i månaden."]
[null,"Alla priser är angivna i SEK, exklusive moms."]
[null,"Instruktioner: Fyll i önskad kvantitet i de färgade fälten. "]
[]
[null,"Produkt ID",{"$nulls":4},"Per TB i 30 dagar",null,"Antal TB",null,"Storage"]
[null,"S3-archive","Anpassad för större lagringsvolymer över längre tid.",null,null,null,{"$f":"S3_archive.50_SEK","v":350},null,null,null,{"$f":"I95*G95","v":0}]
[null,"S3-storage","Anpassad för applikationer som aktivt använder S3-protokollet.",null,null,null,{"$f":"S3_storage50_SEK","v":500},null,null,null,0]
[null,"Totalt",{"$nulls":8},{"$f":"SUM(K95:K96)","v":0}]
[]
[null,"S3 Archive"]
[null,"Produkt ID","Antal TB","Per TB/månad"]
[null,"S3-archive",null,null,{"$f":"_xlfn.IFS(H101<50,D102,H101<100,D103,H101<500,D104,H101<1000,D105,H101>999,D106)","v":185},null,null,600,"TB",null,{"$f":"_xlfn.IFS(H101<1000,ROUNDUP(H101*E101,2),H101>999,E101)","v":111000}]
[null,"S3-archive","0 - 49",{"$f":"S3_archive.50_SEK","v":350}]
[null,"S3-archive","50 - 99",{"$f":"S3_archive.100_SEK","v":270}]
[null,"S3-archive","100 - 499",{"$f":"S3_archive.500_SEK","v":200}]
[null,"S3-archive","500 - 999",{"$f":"S3_archive.1000_SEK","v":185}]
[null,"S3-archive","1000 - ",{"$f":"S3_archive.quote_SEK","v":"Be om offert"}]
[null,"  Totalt",{"$nulls":8},{"$f":"K101","v":111000}]
[]
[]
[null,"Safespring Backup | SP"]
[]
[]
[null,"Backup-lösning i cloud för lokala servrar eller molnservrar baserad på Spectrum Protect (TSM)."]
[null,"Alla priser angivna i SEK, exklusive moms."]
[null,"Instruktioner: Fyll i önskad kvantitet i de färgade fälten. "]
[]
[null,"Produkt ID",null,null,"Fast månadspris",null,"Per GB i 30 dagar",null,"Antal GB","Deduplicering 1","Backup"]
[null,"BAAS-on.demand 2",null,null,"N/A",null,{"$f":"BAAS_on.demand_SEK","v":2.4500000000000002},null,null,"N/A",{"$f":"ROUNDUP(I118*G118,2)","v":0}]
[null,"BAAS-small 3",null,null,5500,null,{"$f":"BAAS_small_SEK","v":1.75},null,null,0.75,{"$f":"IF(I119>0,$E$119+($G$119*(I119*(1-$J$119))),0)","v":0}]
[null,"BAAS-large 4",null,null,9500,null,{"$f":"BAAS_large_SEK","v":0.92},null,null,0.75,{"$f":"IF(I120>0,$E$120+($G$120*(I120*(1-$J$120))),0)","v":0}]
[null,"Totalt",{"$nulls":6},{"$f":"SUM(I118:I120)&\" GB\"","v":"0 GB"},null,{"$f":"SUM(K118:K120)","v":0}]
[]
[]
[]
[null,"Compliant Kubernetes"]
[]
[]
[null,"Kör Compliant Kubernetes som en managerad tjänst. "]
[null,"Safespring Compute tillkommer. Vi kan tillsammans med er räkna ut ert pris."]
[]
[]
[null,"Produkt ID","Support-tider",null,"Tillgänglighet",null,"Fast månadspris",null,null,null,"Pris"]
[null,"PAAS-man.kubernetes8","08:00 - 17:00",null,"Vardagar",null,15000,null,null,0,{"$f":"IF(J133=1,G133,\" \")","v":" "}]
[null,"PAAS-man.kubernetes24","Dygnet runt",null,"Alla dagar",null,24000,null,null,null,{"$f":"IF(J133=3,G134,\" \")","v":" "}]
[null,"Totalt",{"$nulls":8},{"$f":"SUM(K133:K134)","v":0}]
[]
[]
[]
[null,"Nätverk och programvara"]
[]
[]
[null,"Alla priser angivna i SEK, exklusive moms."]
[]
[null,"Nätverk"]
[null,"Safespring erbjuder flera nätverkstjänster."]
[null,"Produkt ID"," Typ",null,"Beskrivning",{"$nulls":4},"Debitering per","Per månad"]
[null,"NET-publicv4","IPv4",null,"Publik",{"$nulls":4},"IP-adress",{"$f":"NET_publicv4_SEK","v":25}]
[null,"NET-publicv6","IPv6",null,"Publik",{"$nulls":4},"N/A",{"$f":"NET_publicv6_SEK","v":0}]
[null,"NET-ingress","Datatrafik",{"$nulls":6},"N/A",{"$f":"NET_ingress_SEK","v":0}]
[null,"NET-egress","Datatrafik",{"$nulls":6},"N/A",{"$f":"NET_egress_SEK","v":0}]
[null,"NET-mgn.slb","Managed SLB ",null,"Lastbalanserare baserad på två l2.c4.r8.100",{"$nulls":4},"Instans ",{"$f":"NET_mgn.slb_SEK","v":2100}]
[null,"NET-rdns","Reverse DNS names",{"$nulls":6},"N/A",{"$f":"NET_rdns_SEK","v":0}]
[null,"NET-byoip","Bring your own IP prefixes",{"$nulls":6},"N/A",0]
[]
[]
[]
[null,"Programvara och licenser"]
[null,"Safespring erbjuder flera programvaror och licenser."]
[null,"Produkt ID",null,null,"Beskrivning",{"$nulls":4},"Debitering per","Per månad"]
[null,"SW-win.ser.2022",null,null,"Microsoft Windows Server",{"$nulls":4},"vCPU",{"$f":"SW_win.ser.201X_SEK","v":175}]
[null,"SW-ms.sql.ser",null,null,"Microsoft SQL Server Standard",{"$nulls":4},"vCPU",{"$f":"SW_ms.sql.ser_SEK","v":1229}]
[null,"SW-ms.sql.ser.ent",null,null,"Microsoft SQL Server Enterprise",{"$nulls":4},"vCPU",{"$f":"SW_ms.sql.ser.ent_SEK","v":4766}]
[null,"SW-nextcloud",null,null,"Nextcloud Hub",{"$nulls":4},"Konto",{"$f":"SW_nextcloud_SEK","v":70}]
[]
[]
[]
[null,"Support"]
[]
[]
[null,"Support gäller för Safespring Compute, Safespring Storage och Safespring Backup."]
[null,"Alla priser angivna i SEK, exklusive moms."]
[]
[null,"Support"]
[null,"Safespring erbjuder flera supportavtal."]
[null,"Produkt ID",null,"Beskrivning",{"$nulls":4},"Debitering per",null,"Pris"]
[null,"SUPPORT-base",null,"Support för Safesprings tjänster",{"$nulls":4},"N/A",null,0]
[null,"SUPPORT-standard",null,"Tillgång till chatt-rum med support och tekniker",{"$nulls":4},"Total volym",null,"3 % av total volym 5"]
[null,"SUPPORT-premium",null,"Dedikerad servicechef med kvartalsvisa driftsmöten",{"$nulls":4},"Månad",null,25000]
[]
[]
[null,"Konsulttjänster"]
[null,"Safespring erbjuder flera konsulttjänster."]
[null,"Produkt ID",null,"Beskrivning",{"$nulls":4},"Debitering per",null,"Pris"]
[null,"PS-consult.jun",null,"Cloud Infrastructure Consultant, junior expertise level",{"$nulls":4},"Timme",null,{"$f":"PS_consult.jun_SEK","v":1127}]
[null,"PS-consult.sen",null,"Cloud infrastructure Consultant, senior expertise level",{"$nulls":4},"Timme",null,{"$f":"PS_consult.sen_SEK","v":1374}]
[null,"PS-cloudarch.jun",null,"Cloud Infrastructure Architect Consultant, junior expertise level",{"$nulls":4},"Timme",null,{"$f":"PS_cloudarch.jun_SEK","v":1277}]
[null,"PS-cloudarch.sen",null,"Cloud Infrastructure Architect Consultant, senior expertise level",{"$nulls":4},"Timme",null,{"$f":"PS_cloudarch.sen_SEK","v":1374}]
[null,"PS-pm.jun",null,"Project Manager, junior expertise level",{"$nulls":4},"Timme",null,{"$f":"PS_pm.jun_SEK","v":1139}]
[null,"PS-pm.sen",null,"Project Manager, senior expertise level",{"$nulls":4},"Timme",null,{"$f":"PS_pm.sen_SEK","v":1374}]
[]
[]
[null,"Utbildningar"]
[null,"Safespring erbjuder flera utbildningar inom IaaS och molntjänster."]
[null,"Produkt ID",null,"Beskrivning",null,null,"Längd",null,"Debitering per",null,"Pris"]
[null,"COURSE-intro.iaas",null,"Introduktion till \"infrastruktur som tjänst\"",null,null,"En dag",null,"Tillfälle",null,6500]
[null,"COURSE-cxo.strategy",null,"Molnstrategi för ledningsgrupper",null,null,"En dag",null,"Tillfälle",null,6500]
[null,"COURSE-intro.cloud",null,"Introduktion till moln-infrastrukturteknik",null,null,"Fyra dagar",null,"Tillfälle",null,26000]
[null,"COURSE-devops.microservices",null,"Modern DevOps och \"microservices\"",null,null,"Fyra dagar",null,"Tillfälle",null,26000]
[]
[]
[]
[]
[]
[]
[null,"Månadskostnad"]
[]
[]
[null,"Alla priser angivna i SEK, exklusive moms."]
[]
[null," Kontakta Safespring för en fullständig offert"]
[null,"Telefon: 08-55 10 73 56"]
[null,"hello@safespring.com"]
[]
[null,"Produkt",{"$nulls":7},"Månadskostnad"]
[null,"Safespring Compute",{"$f":"SUM(I26:I37*C26:C37)+SUM(I47:I56*b2_list_Antal_instanser)+SUM(I62:I65*C62:C65)+SUM(I72:I74*C72:C74)&\" vCPU\"&\"     /     \"&SUM(I26:I37*E26)+SUM(b2_list_vCPU*b2_list_ram)+SUM(I62:I65*D62:D65)+SUM(I72:I74*D72:D74)&\" GB RAM\"&\"     /     \"&SUM(I26:I37*E26:E37)+SUM(b2_list_vCPU*E47:E56)+SUM(I62:I65*E62:E65)+SUM(I72:I74*E72:E74)&\" GB  NVMe\"&\"     /     \"&SUM(I81:I83)&\" GB Blocklagring\"","v":"0 vCPU     /     0 GB RAM     /     0 GB  NVMe     /     0 GB Blocklagring"},{"$nulls":6},{"$f":"K66+K75+K57+K40+K84","v":0}]
[null,"Safespring Storage",{"$f":"K96&\" TB - Storage\"&\"     /     \"&K95&\" TB - Archive\"","v":"0 TB - Storage     /     0 TB - Archive"},{"$nulls":6},{"$f":"K97","v":0}]
[null,"Safespring Backup",{"$nulls":7},{"$f":"K121","v":0}]
[null,"Totalt",{"$nulls":7},{"$f":"SUM(J215:J217)","v":0}]
[]
[]
[]
[]
[null,"1 Dedup är en datareduktion som görs i tjänsten. Beroende på data varierar det normalt mellan 45 % - 90 %."]
[null,"2 Priset är per skyddad GB på klienten. "]
[null,"3 Priset är per lagrad GB i tjänsten efter deduplicering och komprimering. Det ingår 1 000 GB i det fasta månadspriset. "]
[null,"4 Priset är per lagrad GB i tjänsten efter deduplicering och komprimering. "]
[null,"5 Supportavgiften debiteras med 3 % av den totala volymen med en lägsta avgift på 1500 SEK per månad."]

{"sheet":"NOK - Safespring tjenester 2024","index":1,"n_rows":228,"n_cols":11,"rows_kept":228,"cut":false,"hidden":false,"merged":[[171,1,171,5],[205,1,207,6],[208,1,208,5],[138,1,140,6],[141,1,141,5],[142,1,142,5],[167,1,169,6],[170,1,170,5],[132,2,132,3],[132,4,132,5],[132,6,132,7],[133,2,133,3],[133,4,133,5],[133,6,133,7],[124,1,126,6],[128,1,128,5],[131,2,131,3],[131,4,131,5],[131,6,131,7],[105,3,105,4],[105,5,105,6],[105,7,105,8],[109,1,111,6],[113,1,113,5],[103,3,103,4],[103,5,103,6],[103,7,103,8],[104,3,104,4],[104,5,104,6],[104,7,104,8],[99,7,99,8],[101,3,101,4],[101,5,101,6],[101,7,101,8],[102,3,102,4],[102,5,102,6],[102,7,102,8],[59,1,59,4],[69,1,69,4],[86,1,88,6],[99,3,99,4],[99,5,99,6],[3,1,3,2],[14,1,16,6],[18,1,18,5],[23,1,23,4],[44,1,44,4]]}
[]
[]
[]
[]
[null,"Priskalkulator 2024-05-06"]
[]
[]
[null,"Kontakt Safespring",null,"Valuta"]
[null,"Telefon: +47 35 68 88 70"]
[null,"hello@safespring.com"]
[]
[]
[]
[]
[null,"Safespring Compute | IaaS"]
[]
[]
[null,"Infrastruktur kan kjøres med en Open Source-lisens eller med en Windows-lisens."]
[null,"Alle priser er oppgitt i NOK, eks mva."]
[null,"Instruksjoner: Angi ønsket antall i de fargede feltene."]
[]
[]
[null,"Flavors med lokal NVMe-disk"]
[null,"Sentral blokklagring kan kjøpes til innsatsene. Se \"Sentral blokklagring\" i prislisten."]
[null,"Produkt ID","vCPU","RAM (GB)","Lokal disk (GB)","Per time","Per 30 dager",null,"Antall",null,"Infrastruktur"]
[null,{"$f":"'SEK - Safesprings tjänster 2024'!B26","v":"FLAVOR-l2. c2 r4. 100"},{"$f":"'SEK - Safesprings tjänster 2024'!C26","v":2},{"$f":"'SEK - Safesprings tjänster 2024'!D26","v":4},{"$f":"'SEK - Safesprings tjänster 2024'!E26","v":100},{"$f":"G26/720","v":0.66666666666666663},{"$f":"C26*IAAS_vcpu_SEK+D26*IAAS_ram_SEK+E26*IAAS_nvme_SEK","v":480},null,null,null,{"$f":"ROUNDUP(I26*G26,2)","v":0}]
[null,{"$f":"'SEK - Safesprings tjänster 2024'!B27","v":"FLAVOR-l2. c2 r4. 500"},{"$f":"'SEK - Safesprings tjänster 2024'!C27","v":2},{"$f":"'SEK - Safesprings tjänster 2024'!D27","v":4},{"$f":"'SEK - Safesprings tjänster 2024'!E27","v":500},1.2222222222222223,880,null,null,null,0]
[null,{"$f":"'SEK - Safesprings tjänster 2024'!B28","v":"FLAVOR-l2. c2 r4. 1000"},{"$f":"'SEK - Safesprings tjänster 2024'!C28","v":2},{"$f":"'SEK - Safesprings tjänster 2024'!D28","v":4},{"$f":"'SEK - Safesprings tjänster 2024'!E28","v":1000},1.9166666666666667,1380,null,null,null,0]
[null,{"$f":"'SEK - Safesprings tjänster 2024'!B29","v":"FLAVOR-l2. c4 r8. 100"},{"$f":"'SEK - Safesprings tjänster 2024'!C29","v":4},{"$f":"'SEK - Safesprings tjänster 2024'!D29","v":8},{"$f":"'SEK - Safesprings tjänster 2024'!E29","v":100},1.1944444444444444,860,null,null,null,0]
[null,{"$f":"'SEK - Safesprings tjänster 2024'!B30","v":"FLAVOR-l2. c4 r8. 500"},{"$f":"'SEK - Safesprings tjänster 2024'!C30","v":4},{"$f":"'SEK - Safesprings tjänster 2024'!D30","v":8},{"$f":"'SEK - Safesprings tjänster 2024'!E30","v":500},1.75,1260,null,null,null,0]
[null,{"$f":"'SEK - Safesprings tjänster 2024'!B31","v":"FLAVOR-l2. c4 r8. 1000"},{"$f":"'SEK - Safesprings tjänster 2024'!C31","v":4},{"$f":"'SEK - Safesprings tjänster 2024'!D31","v":8},{"$f":"'SEK - Safesprings tjänster 2024'!E31","v":1000},2.4444444444444446,1760,null,null,null,0]
[null,{"$f":"'SEK - Safesprings tjänster 2024'!B32","v":"FLAVOR-l2. c8 r16. 100"},{"$f":"'SEK - Safesprings tjänster 2024'!C32","v":8},{"$f":"'SEK - Safesprings tjänster 2024'!D32","v":16},{"$f":"'SEK - Safesprings tjänster 2024'!E32","v":100},2.25,1620,null,null,null,0]
[null,{"$f":"'SEK - Safesprings tjänster 2024'!B33","v":"FLAVOR-l2. c8 r16. 500"},{"$f":"'SEK - Safesprings tjänster 2024'!C33","v":8},{"$f":"'SEK - Safesprings tjänster 2024'!D33","v":16},{"$f":"'SEK - Safesprings tjänster 2024'!E33","v":500},2.8055555555555554,2020,null,null,null,0]
[null,{"$f":"'SEK - Safesprings tjänster 2024'!B34","v":"FLAVOR-l2. c8 r16. 1000"},{"$f":"'SEK - Safesprings tjänster 2024'!C34","v":8},{"$f":"'SEK - Safesprings tjänster 2024'!D34","v":16},{"$f":"'SEK - Safesprings tjänster 2024'!E34","v":1000},3.5,2520,null,null,null,0]
[null,{"$f":"'SEK - Safesprings tjänster 2024'!B35","v":"FLAVOR-l2. c16 r32. 100"},{"$f":"'SEK - Safesprings tjänster 2024'!C35","v":16},{"$f":"'SEK - Safesprings tjänster 2024'!D35","v":32},{"$f":"'SEK - Safesprings tjänster 2024'!E35","v":100},4.3611111111111107,3140,null,null,null,0]
[null,{"$f":"'SEK - Safesprings tjänster 2024'!B36","v":"FLAVOR-l2. c16 r32. 500"},{"$f":"'SEK - Safesprings tjänster 2024'!C36","v":16},{"$f":"'SEK - Safesprings tjänster 2024'!D36","v":32},{"$f":"'SEK - Safesprings tjänster 2024'!E36","v":500},4.916666666666667,3540,null,null,null,0]
[null,{"$f":"'SEK - Safesprings tjänster 2024'!B37","v":"FLAVOR-l2. c16 r32. 1000"},{"$f":"'SEK - Safesprings tjänster 2024'!C37","v":16},{"$f":"'SEK - Safesprings tjänster 2024'!D37","v":32},{"$f":"'SEK - Safesprings tjänster 2024'!E37","v":1000},5.6111111111111107,4040,null,null,null,0]
[null,{"$f":"'SEK - Safesprings tjänster 2024'!B38","v":"FLAVOR-l2. c16 r64. 500"},{"$f":"'SEK - Safesprings tjänster 2024'!C38","v":16},{"$f":"'SEK - Safesprings tjänster 2024'!D38","v":64},{"$f":"'SEK - Safesprings tjänster 2024'!E38","v":500},7.3611111111111107,5300,null,null,null,0]
[null,{"$f":"'SEK - Safesprings tjänster 2024'!B39","v":"FLAVOR-l2. c32 r64. 1000"},{"$f":"'SEK - Safesprings tjänster 2024'!C39","v":32},{"$f":"'SEK - Safesprings tjänster 2024'!D39","v":64},{"$f":"'SEK - Safesprings tjänster 2024'!E39","v":1000},9.8333333333333339,7080,null,null,null,0]
[null,"Totalt",{"$f":"SUM(C26:C39*I26:I39)&\" st\"","v":"0 st"},{"$f":"SUM(D26:D39*I26:I39)&\" GB\"","v":"0 GB"},{"$f":"SUM(E26:E39*I26:I39)&\" GB\"","v":"0 GB"},null,null,null,{"$f":"SUM(I26:I39)&\" st\"","v":"0 st"},null,{"$f":"SUM(K26:K39)","v":0}]
[]
[]
[]
[null,"Flavors utan lokal disk"]
[null,"Sentral blokklagring kan kjøpes til innsatsene. Se \"Sentral blokklagring\" i prislisten."]
[null,"Produkt ID","vCPU","RAM (GB)","Lokal disk (GB)","Per time","Per 30 dager",null,"Antall",null,"Infrastruktur"]
[null,{"$f":"'SEK - Safesprings tjänster 2024'!B47","v":"FLAVOR-b2. c1 r2"},{"$f":"'SEK - Safesprings tjänster 2024'!C47","v":1},{"$f":"'SEK - Safesprings tjänster 2024'!D47","v":2},{"$f":"'SEK - Safesprings tjänster 2024'!E47","v":0},0.2638888888888889,{"$f":"C47*IAAS_vcpu_SEK+D47*IAAS_ram_SEK+E47*IAAS_ssd_SEK","v":190},null,null,null,{"$f":"ROUNDUP(I47*G47,2)","v":0}]
[null,{"$f":"'SEK - Safesprings tjänster 2024'!B48","v":"FLAVOR-b2. c1 r4"},{"$f":"'SEK - Safesprings tjänster 2024'!C48","v":1},{"$f":"'SEK - Safesprings tjänster 2024'!D48","v":4},{"$f":"'SEK - Safesprings tjänster 2024'!E48","v":0},0.41666666666666669,300,null,null,null,0]
[null,{"$f":"'SEK - Safesprings tjänster 2024'!B49","v":"FLAVOR-b2. c2 r4"},{"$f":"'SEK - Safesprings tjänster 2024'!C49","v":2},{"$f":"'SEK - Safesprings tjänster 2024'!D49","v":4},{"$f":"'SEK - Safesprings tjänster 2024'!E49","v":0},0.52777777777777779,380,null,null,null,0]
[null,{"$f":"'SEK - Safesprings tjänster 2024'!B50","v":"FLAVOR-b2. c2 r8"},{"$f":"'SEK - Safesprings tjänster 2024'!C50","v":2},{"$f":"'SEK - Safesprings tjänster 2024'!D50","v":8},{"$f":"'SEK - Safesprings tjänster 2024'!E50","v":0},0.83333333333333337,600,null,null,null,0]
[null,{"$f":"'SEK - Safesprings tjänster 2024'!B51","v":"FLAVOR-b2 .c4 r8"},{"$f":"'SEK - Safesprings tjänster 2024'!C51","v":4},{"$f":"'SEK - Safesprings tjänster 2024'!D51","v":8},{"$f":"'SEK - Safesprings tjänster 2024'!E51","v":0},1.0555555555555556,760,null,null,null,0]
[null,{"$f":"'SEK - Safesprings tjänster 2024'!B52","v":"FLAVOR-b2. c4 r16"},{"$f":"'SEK - Safesprings tjänster 2024'!C52","v":4},{"$f":"'SEK - Safesprings tjänster 2024'!D52","v":16},{"$f":"'SEK - Safesprings tjänster 2024'!E52","v":0},1.6666666666666667,1200,null,null,null,0]
[null,{"$f":"'SEK - Safesprings tjänster 2024'!B53","v":"FLAVOR-b2. c8 r16"},{"$f":"'SEK - Safesprings tjänster 2024'!C53","v":8},{"$f":"'SEK - Safesprings tjänster 2024'!D53","v":16},{"$f":"'SEK - Safesprings tjänster 2024'!E53","v":0},2.1111111111111112,1520,null,null,null,0]
[null,{"$f":"'SEK - Safesprings tjänster 2024'!B54","v":"FLAVOR-b2. c8 r32"},{"$f":"'SEK - Safesprings tjänster 2024'!C54","v":8},{"$f":"'SEK - Safesprings tjänster 2024'!D54","v":32},{"$f":"'SEK - Safesprings tjänster 2024'!E54","v":0},3.3333333333333335,2400,null,null,null,0]
[null,{"$f":"'SEK - Safesprings tjänster 2024'!B55","v":"FLAVOR-b2. c16 r32"},{"$f":"'SEK - Safesprings tjänster 2024'!C55","v":16},{"$f":"'SEK - Safesprings tjänster 2024'!D55","v":32},{"$f":"'SEK - Safesprings tjänster 2024'!E55","v":0},4.2222222222222223,3040,null,null,null,0]
[null,{"$f":"'SEK - Safesprings tjänster 2024'!B56","v":"FLAVOR-b2. c16 r64"},{"$f":"'SEK - Safesprings tjänster 2024'!C56","v":16},{"$f":"'SEK - Safesprings tjänster 2024'!D56","v":64},{"$f":"'SEK - Safesprings tjänster 2024'!E56","v":0},6.666666666666667,4800,null,null,null,0]
[null,"Totalt",{"$f":"SUM(b2_list_vCPU*b2_list_Antal_instanser)&\" st\"","v":"0 st"},{"$f":"SUM(b2_list_ram*b2_list_vCPU)&\" GB\"","v":"0 GB"},"N/A",null,null,null,{"$f":"SUM(I47:I56)&\" st\"","v":"0 st"},null,{"$f":"SUM(K47:K56)","v":0}]
[]
[null,"Instanser med GPU och lokal disk (NVME-disk)"]
[null,"Central blocklagring kan köpas till instansene. Se \"Central blocklagring\" i prislistan."]
[null,"Produkt ID","CPU (p) core","RAM (GB)","NVME (GB)","GPU","Per timme","Per 30 dagar","Antal instanser",null,"Infrastruktur"]
[null,"INSTANCE-glm.large.1d",4,16,250,1,{"$f":"H62/720","v":9.6527777777777786},{"$f":"C62*IAAS_vcpu_SEK+D62*IAAS_ram_SEK+E62*IAAS_nvme_SEK+F62*IAAS_gpu_SEK","v":6950},null,null,{"$f":"ROUNDUP(I62*H62,2)","v":0}]
[null,"INSTANCE-glm.xlarge.2d",8,32,500,2,19.305555555555557,13900,null,null,0]
[null,"INSTANCE-glm.2xlarge.4d",16,64,1000,4,38.611111111111114,27800,null,null,0]
[null,"INSTANCE-glm.4xlarge.8d",32,128,1000,6,60.555555555555557,43600,null,null,0]
[null,"Totalt",{"$f":"SUM(I62:I65*C62:C65)&\" st\"","v":"0 st"},{"$f":"SUM(I62:I65*D62:D65)&\" GB\"","v":"0 GB"},{"$f":"SUM(I62:I65*E62:E65)&\" GB\"","v":"0 GB"},{"$f":"SUM(I62:I65*F62:F65)&\" st\"","v":"0 st"},null,null,{"$f":"SUM(I62:I65)&\" st\"","v":"0 st"},null,{"$f":"SUM(K62:K65)","v":0}]
[]
[]
[null,"Bare Metal Compute "]
[null,"Central blocklagring kan köpas till instansene. Se \"Central blocklagring\" i prislistan."]
[null,"Produkt ID","CPU (p) core","RAM (GB)","NVME (GB)","Per timme","Per 30 dagar",null,"Antal",null,"Infrastruktur"]
[null,"INSTANCE-p1.2xlarge.16d",16,128,3800,{"$f":"G72/720","v":9.5},{"$f":"INSTANCE_p1.2xlarge.16d_SEK","v":6840},null,null,null,{"$f":"ROUNDUP(I72*G72,2)","v":0}]
[null,"INSTANCE-p1.4xlarge.16d",32,256,3800,19,{"$f":"INSTANCE_p1.4xlarge.16d_SEK","v":13680},null,null,null,0]
[null,"INSTANCE-p1.8xlarge.32d",64,512,7600,38,{"$f":"INSTANCE_p1.8xlarge.32d_SEK","v":27360},null,null,null,0]
[null,"Totalt",{"$f":"SUM(I72:I74*C72:C74)&\" st\"","v":"0 st"},{"$f":"SUM(I72:I74*D72:D74)&\" GB\"","v":"0 GB"},{"$f":"SUM(I72:I74*E72:E74)&\" GB\"","v":"0 GB"},null,null,null,{"$f":"SUM(I72:I74)&\" st\"","v":"0 st"},null,{"$f":"SUM(K72:K74)","v":0}]
[]
[]
[null,"Sentral blokklagring"]
[null,"Sentral blokklagring gir tre kopier av dataene distribuert i en robust CEPH-klynge."]
[null,"Produkt ID","Beskrivelse",null,null,"Per timme","Per 30 dagar",null,"Antall (GB)",null,"Lagring"]
[null,"VOLUME-large","HDD-backed 3-replica Ceph",null,null,1.6666666666666666E-3,{"$f":"VOLUME_large_SEK","v":1.2},null,null,null,{"$f":"ROUNDUP(I81*G81,2)","v":0}]
[null,"VOLUME-fast","SSD-backed 3-replica Ceph",null,null,5.0000000000000001E-3,{"$f":"VOLUME_fast_SEK","v":3.6},null,null,null,0]
[null,"VOLUME-snapshot","Snapshot of image",null,null,1.6666666666666666E-3,{"$f":"VOLUME_large_SEK","v":1.2},null,null,null,0]
[null,"Totalt",{"$nulls":6},{"$f":"SUM(I81:I83)&\" GB\"","v":"0 GB"},null,{"$f":"SUM(K81:K83)","v":0}]
[]
[]
[null,"Safespring Storage | S3"]
[]
[]
[null,"Kontakt oss for rabatter på større lagringsmengder. Prismodell basert på antall lagrede TB per måned."]
[null,"Alle priser er oppgitt i NOK, eks mva"]
[null,"Instruksjoner: Angi ønsket antall i de fargede feltene."]
[]
[null,"Produkt ID",{"$nulls":4},"Per TB i 30 dager",null,"Antall (TB)",null,"Storage"]
[null,"S3-archive",{"$nulls":4},{"$f":"S3_archive.50_SEK","v":350},null,null,null,{"$f":"I95*G95","v":0}]
[null,"S3-storage",{"$nulls":4},{"$f":"S3_storage50_SEK","v":500},null,null,null,0]
[null,"Totalt",{"$nulls":8},{"$f":"SUM(K95:K96)","v":0}]
[]
[null,"S3 Archive"]
[null,"Produkt ID","Antal TB","Per TB/månad"]
[null,"S3-archive",null,null,{"$f":"_xlfn.IFS(H101<50,D102,H101<100,D103,H101<500,D104,H101<1000,D105,H101>999,D106)","v":185},null,null,600,"TB",null,{"$f":"_xlfn.IFS(H101<1000,ROUNDUP(H101*E101,2),H101>999,E101)","v":111000}]
[null,"S3-archive","0 - 49",{"$f":"S3_archive.50_SEK","v":350}]
[null,"S3-archive","50 - 99",{"$f":"S3_archive.100_SEK","v":270}]
[null,"S3-archive","100 - 499",{"$f":"S3_archive.500_SEK","v":200}]
[null,"S3-archive","500 - 999",{"$f":"S3_archive.1000_SEK","v":185}]
[null,"S3-archive","1000 - ",{"$f":"S3_archive.quote_SEK","v":"Be om offert"}]
[null,"  Totalt",{"$nulls":8},{"$f":"K101","v":111000}]
[]
[]
[null,"Safespring Backup | SP"]
[]
[]
[null,"Cloud backup-løsning for on-prem eller skyservere basert på Spectrum Protect (TSM)."]
[null,"Alle priser er oppgitt i NOK, eks mva."]
[null,"Instruksjoner: Angi ønsket antall i de fargede feltene."]
[]
[null,"Produkt ID",null,null,"Fast månedlig pris",null,"Per GB i 30 dager",null,"Antall (GB)","Deduplisering 1","Backup"]
[null,"BAAS-on.demand 2",null,null,"N/A",null,{"$f":"BAAS_on.demand_SEK","v":2.4500000000000002},null,null,"N/A",{"$f":"ROUNDUP(I118*G118,2)","v":0}]
[null,"BAAS-small 3",null,null,5500,null,{"$f":"BAAS_small_SEK","v":1.75},null,null,0.75,{"$f":"IF(I119>0,$E$119+($G$119*(I119*(1-$J$119))),0)","v":0}]
[null,"BAAS-large 4",null,null,9500,null,{"$f":"BAAS_large_SEK","v":0.92},null,null,0.75,{"$f":"IF(I120>0,$E$120+($G$120*(I120*(1-$J$120))),0)","v":0}]
[null,"Totalt",{"$nulls":6},{"$f":"SUM(I118:I120)&\" GB\"","v":"0 GB"},null,{"$f":"SUM(K118:K120)","v":0}]
[]
[]
[]
[null,"Compliant Kubernetes"]
[]
[]
[null,"Kjør Compliant Kubernetes som en administrert tjeneste. Safespring Compute vil bli lagt til."]
[null,"Safespring Compute vil bli lagt til. Vi kan samarbeide med deg for å beregne prisen."]
[null,"Instruksjoner: Gjør et valg i de fargede feltene."]
[]
[null,"Produkt ID","Støttetider",null,"Tilgjengelighet",null,"Fast månedlig pris",null,null,null,"Pris"]
[null,"PAAS-man.kubernetes8","08:00 - 17:00",null,"Hverdager",null,15000,null,null,2,{"$f":"IF(J133=1,G133,\" \")","v":" "}]
[null,"PAAS-man.kubernetes24","Døgnet rundt",null,"Alle dager",null,24000,null,null,null,{"$f":"IF(J133=3,G134,\" \")","v":" "}]
[null,"Totalt",{"$nulls":8},{"$f":"SUM(K133:K134)","v":0}]
[]
[]
[]
[null,"Nettverk og programvare"]
[]
[]
[null,"Alle priser er oppgitt i NOK, eks mva."]
[]
[]
[null,"Nettverk"]
[null,"Safespring tilbyr flere nettverkstjenester."]
[null,"Produkt ID","Type",null,"Beskrivelse",{"$nulls":4},"Fakturering pr","Per måned"]
[null,"NET-publicv4","IPv4",null,"Public",{"$nulls":4},"IP-adress",{"$f":"NET_publicv4_SEK","v":25}]
[null,"NET-publicv6","IPv6",null,"Public",{"$nulls":4},"N/A",{"$f":"NET_publicv6_SEK","v":0}]
[null,"NET-ingress","Datatrafikk",{"$nulls":6},"N/A",{"$f":"NET_ingress_SEK","v":0}]
[null,"NET-egress","Datatrafikk",{"$nulls":6},"N/A",{"$f":"NET_egress_SEK","v":0}]
[null,"NET-mgn.slb","Managed SLB ",null,"Lastbalansere basert på to l2.c4.r8.100",{"$nulls":4},"Instans ",{"$f":"NET_mgn.slb_SEK","v":2100}]
[null,"NET-rdns","Reverse DNS names",{"$nulls":6},"N/A",{"$f":"NET_rdns_SEK","v":0}]
[null,"NET-byoip","Bring your own IP prefixes",{"$nulls":6},"N/A",0]
[]
[]
[]
[null,"Programvare og lisenser"]
[null,"Safespring tilbyr flere programvarer og lisenser."]
[null,"Produkt ID",null,null,"Beskrivelse",{"$nulls":4},"Fakturering pr","Per måned"]
[null,"SW-win.ser.2022",null,null,"Microsoft Windows Server",{"$nulls":4},"vCPU",{"$f":"SW_win.ser.201X_SEK","v":175}]
[null,"SW-ms.sql.ser",null,null,"Microsoft SQL Server Standard",{"$nulls":4},"vCPU",{"$f":"SW_ms.sql.ser_SEK","v":1229}]
[null,"SW-ms.sql.ser.ent",null,null,"Microsoft SQL Server Enterprise",{"$nulls":4},"vCPU",{"$f":"SW_ms.sql.ser.ent_SEK","v":4766}]
[null,"SW-nextcloud",null,null,"Nextcloud Hub",{"$nulls":4},"Konto",{"$f":"SW_nextcloud_SEK","v":70}]
[]
[]
[]
[null,"Support"]
[]
[]
[null,"Support gjelder Safespring Compute, Safespring Storage og Safespring Backup."]
[null,"Alle priser er oppgitt i NOK, eks mva."]
[]
[null,"Support"]
[null,"Safespring tilbyr flere support-avtaler."]
[null,"Produkt ID",null,"Beskrivelse",{"$nulls":4},"Fakturering pr",null,"Pris"]
[null,"SUPPORT-base",null,"Support til Safesprings tjenester",{"$nulls":4},"N/A",null,0]
[null,"SUPPORT-standard",null,"Tilgang til chatte-rom med support og tekniker",{"$nulls":4},"Total volum",null,"3 % av total volum 5"]
[null,"SUPPORT-premium",null,"Dedikert servicesjef med kvartalsvise driftsmøter",{"$nulls":4},"Måned",null,25000]
[]
[]
[null,"Konsulttjenester"]
[null,"Safespring tilbyr flere konsulttjenester."]
[null,"Produkt ID",null,"Beskrivelse",{"$nulls":4},"Fakturering pr",null,"Pris"]
[null,"PS-consult.jun",null,"Cloud Infrastructure Consultant, junior expertise level",{"$nulls":4},"Timme",null,{"$f":"PS_consult.jun_SEK","v":1127}]
[null,"PS-consult.sen",null,"Cloud infrastructure Consultant, senior expertise level",{"$nulls":4},"Timme",null,{"$f":"PS_consult.sen_SEK","v":1374}]
[null,"PS-cloudarch.jun",null,"Cloud Infrastructure Architect Consultant, junior expertise level",{"$nulls":4},"Timme",null,{"$f":"PS_cloudarch.jun_SEK","v":1277}]
[null,"PS-cloudarch.sen",null,"Cloud Infrastructure Architect Consultant, senior expertise level",{"$nulls":4},"Timme",null,{"$f":"PS_cloudarch.sen_SEK","v":1374}]
[null,"PS-pm.jun",null,"Project Manager, junior expertise level",{"$nulls":4},"Timme",null,{"$f":"PS_pm.jun_SEK","v":1139}]
[null,"PS-pm.sen",null,"Project Manager, senior expertise level",{"$nulls":4},"Timme",null,{"$f":"PS_pm.sen_SEK","v":1374}]
[]
[]
[null,"Utdanninger"]
[null,"Safespring tilbyr flere utdanninger innen IaaS og cloud."]
[null,"Produkt ID",null,"Beskrivelse",null,null,null,"Varighet","Fakturering pr",null,"Pris"]
[null,"COURSE-intro.iaas",null,"Introduksjon til \"infrastruktur som en tjeneste\"",null,null,null,"En dag","Stykk",null,6500]
[null,"COURSE-cxo.strategy",null,"Cloud-strategi for ledergrupper",null,null,null,"En dag","Stykk",null,6500]
[null,"COURSE-intro.cloud",null,"Introduksjon til cloud-infrastrukturteknologi",null,null,null,"Fire dager","Stykk",null,26000]
[null,"COURSE-devops.microservices",null,"Moderne DevOps og \"microservices\"",null,null,null,"Fire dager","Stykk",null,26000]
[]
[]
[]
[]
[]
[]
[null,"Månedlig kostnad"]
[]
[]
[null,"Alle priser er oppgitt i NOK, eks mva."]
[]
[null,"Kontakt Safespring for et komplett tilbud"]
[null,"Telefon: 35 68 88 70"]
[null,"hello@safespring.com"]
[]
[null,"Produkt",{"$nulls":7},"Månedlig kostnad"]
[null,"Safespring Compute",{"$f":"SUM(I26:I37*C26:C37)+SUM(I47:I56*b2_list_Antal_instanser)+SUM(I62:I65*C62:C65)+SUM(I72:I74*C72:C74)&\" vCPU\"&\"     /     \"&SUM(I26:I37*E26)+SUM(b2_list_vCPU*b2_list_ram)+SUM(I62:I65*D62:D65)+SUM(I72:I74*D72:D74)&\" GB RAM\"&\"     /     \"&SUM(I26:I37*E26:E37)+SUM(b2_list_vCPU*E47:E56)+SUM(I62:I65*E62:E65)+SUM(I72:I74*E72:E74)&\" GB  NVMe\"&\"     /     \"&SUM(I81:I83)&\" GB Blokklagring\"","v":"0 vCPU     /     0 GB RAM     /     0 GB  NVMe     /     0 GB Blokklagring"},{"$nulls":6},{"$f":"K66+K75+K57+K40+K84","v":0}]
[null,"Safespring Storage",{"$f":"K96&\" TB - S3\"&\"     /     \"&K95&\" TB - Archive\"","v":"0 TB - S3     /     0 TB - Archive"},{"$nulls":6},{"$f":"K97","v":0}]
[null,"Safespring Backup",{"$nulls":7},{"$f":"K121","v":0}]
[null,"Totalt",{"$nulls":7},{"$f":"SUM(J216:J218)","v":0}]
[]
[]
[]
[]
[null,"1 Dedup er en datareduksjon gjort i tjenesten. Avhengig av dataene varierer det normalt mellom 45 % - 90 %"]
[null,"2 Prisen er per beskyttet GB på klienten."]
[null,"3 Prisen er per lagret GB i tjenesten etter deduplisering og komprimering. 1000 GB er inkludert i den faste månedsprisen."]
[null,"4 Prisen er per lagret GB i tjenesten etter deduplisering og komprimering."]
[null,"5 Supportavgiften er 3 % av det totale volumet, med en minimumsavgift på 1500 NOK per måned."]

{"sheet":"DKK - Safespring-tjenester 2024","index":2,"n_rows":227,"n_cols":11,"rows_kept":227,"cut":false,"hidden":false,"merged":[[166,1,168,6],[169,1,169,5],[204,1,206,6],[132,2,132,3],[132,4,132,5],[133,2,133,3],[133,4,133,5],[138,1,140,6],[109,1,111,6],[124,1,126,6],[131,2,131,3],[131,4,131,5],[131,6,131,7],[104,3,104,4],[104,5,104,6],[104,7,104,8],[105,3,105,4],[105,5,105,6],[105,7,105,8],[102,3,102,4],[102,5,102,6],[102,7,102,8],[103,3,103,4],[103,5,103,6],[103,7,103,8],[99,3,99,4],[99,5,99,6],[99,7,99,8],[101,3,101,4],[101,5,101,6],[101,7,101,8],[3,1,3,2],[14,1,16,6],[59,1,59,4],[69,1,69,4],[86,1,88,6]]}
[]
[]
[]
[]
[null,"Prisberegner 2024-05-06"]
[]
[]
[null,"Kontakt Safespring",null,"Valuta"]
[null,"Telefon: +46 8-55 10 73 56"]
[null,"hello@safespring.com"]
[null,null,null,"Fakturaen vil være i DKK, hvor den gennemsnitlige valutakurs, baseret på valutakurserne fra ECB, pr. måned bruges til at beregne priserne."]
[]
[]
[]
[null,"Safespring Compute | IaaS"]
[]
[]
[null,"Infrastruktur kan køre med en Open Source-licens eller med en Windows-licens."]
[null,"Alle priser er i EUR, eksklusive moms. Fakturaen vil være i DKK, hvor den gennemsnitlige valutakurs, baseret på valutakurserne fra ECB, pr. måned bruges til at beregne priserne."]
[null,"Vejledning: Udfyld det ønskede antal i de farvede felter."]
[]
[]
[null,"Flavors med lokal NVMe-disk"]
[null,"Central bloklagring kan købes til instanserne. Se \"Central bloklagring\" i prislisten."]
[null,"Produkt ID","vCPU","RAM (GB)","Lokal disk (GB)","Per time","Per 30 dage",null,"Antal",null,"Infrastruktur"]
[null,{"$f":"'SEK - Safesprings tjänster 2024'!B26","v":"FLAVOR-l2. c2 r4. 100"},{"$f":"'SEK - Safesprings tjänster 2024'!C26","v":2},{"$f":"'SEK - Safesprings tjänster 2024'!D26","v":4},{"$f":"'SEK - Safesprings tjänster 2024'!E26","v":100},{"$f":"G26/720","v":5.9333333333333321E-2},{"$f":"C26*IAAS_vcpu_EUR+D26*IAAS_ram_EUR+E26*IAAS_nvme_EUR","v":42.719999999999992},null,null,null,{"$f":"ROUNDUP(I26*G26,2)","v":0}]
[null,{"$f":"'SEK - Safesprings tjänster 2024'!B27","v":"FLAVOR-l2. c2 r4. 500"},{"$f":"'SEK - Safesprings tjänster 2024'!C27","v":2},{"$f":"'SEK - Safesprings tjänster 2024'!D27","v":4},{"$f":"'SEK - Safesprings tjänster 2024'!E27","v":500},0.10877777777777776,78.319999999999993,null,null,null,0]
[null,{"$f":"'SEK - Safesprings tjänster 2024'!B28","v":"FLAVOR-l2. c2 r4. 1000"},{"$f":"'SEK - Safesprings tjänster 2024'!C28","v":2},{"$f":"'SEK - Safesprings tjänster 2024'!D28","v":4},{"$f":"'SEK - Safesprings tjänster 2024'!E28","v":1000},0.17058333333333334,122.82,null,null,null,0]
[null,{"$f":"'SEK - Safesprings tjänster 2024'!B29","v":"FLAVOR-l2. c4 r8. 100"},{"$f":"'SEK - Safesprings tjänster 2024'!C29","v":4},{"$f":"'SEK - Safesprings tjänster 2024'!D29","v":8},{"$f":"'SEK - Safesprings tjänster 2024'!E29","v":100},0.10630555555555554,76.539999999999992,null,null,null,0]
[null,{"$f":"'SEK - Safesprings tjänster 2024'!B30","v":"FLAVOR-l2. c4 r8. 500"},{"$f":"'SEK - Safesprings tjänster 2024'!C30","v":4},{"$f":"'SEK - Safesprings tjänster 2024'!D30","v":8},{"$f":"'SEK - Safesprings tjänster 2024'!E30","v":500},0.15574999999999997,112.13999999999999,null,null,null,0]
[null,{"$f":"'SEK - Safesprings tjänster 2024'!B31","v":"FLAVOR-l2. c4 r8. 1000"},{"$f":"'SEK - Safesprings tjänster 2024'!C31","v":4},{"$f":"'SEK - Safesprings tjänster 2024'!D31","v":8},{"$f":"'SEK - Safesprings tjänster 2024'!E31","v":1000},0.21755555555555553,156.63999999999999,null,null,null,0]
[null,{"$f":"'SEK - Safesprings tjänster 2024'!B32","v":"FLAVOR-l2. c8 r16. 100"},{"$f":"'SEK - Safesprings tjänster 2024'!C32","v":8},{"$f":"'SEK - Safesprings tjänster 2024'!D32","v":16},{"$f":"'SEK - Safesprings tjänster 2024'!E32","v":100},0.20024999999999998,144.17999999999998,null,null,null,0]
[null,{"$f":"'SEK - Safesprings tjänster 2024'!B33","v":"FLAVOR-l2. c8 r16. 500"},{"$f":"'SEK - Safesprings tjänster 2024'!C33","v":8},{"$f":"'SEK - Safesprings tjänster 2024'!D33","v":16},{"$f":"'SEK - Safesprings tjänster 2024'!E33","v":500},0.24969444444444441,179.77999999999997,null,null,null,0]
[null,{"$f":"'SEK - Safesprings tjänster 2024'!B34","v":"FLAVOR-l2. c8 r16. 1000"},{"$f":"'SEK - Safesprings tjänster 2024'!C34","v":8},{"$f":"'SEK - Safesprings tjänster 2024'!D34","v":16},{"$f":"'SEK - Safesprings tjänster 2024'!E34","v":1000},0.31149999999999994,224.27999999999997,null,null,null,0]
[null,{"$f":"'SEK - Safesprings tjänster 2024'!B35","v":"FLAVOR-l2. c16 r32. 100"},{"$f":"'SEK - Safesprings tjänster 2024'!C35","v":16},{"$f":"'SEK - Safesprings tjänster 2024'!D35","v":32},{"$f":"'SEK - Safesprings tjänster 2024'!E35","v":100},0.38813888888888876,279.45999999999992,null,null,null,0]
[null,{"$f":"'SEK - Safesprings tjänster 2024'!B36","v":"FLAVOR-l2. c16 r32. 500"},{"$f":"'SEK - Safesprings tjänster 2024'!C36","v":16},{"$f":"'SEK - Safesprings tjänster 2024'!D36","v":32},{"$f":"'SEK - Safesprings tjänster 2024'!E36","v":500},0.43758333333333327,315.05999999999995,null,null,null,0]
[null,{"$f":"'SEK - Safesprings tjänster 2024'!B37","v":"FLAVOR-l2. c16 r32. 1000"},{"$f":"'SEK - Safesprings tjänster 2024'!C37","v":16},{"$f":"'SEK - Safesprings tjänster 2024'!D37","v":32},{"$f":"'SEK - Safesprings tjänster 2024'!E37","v":1000},0.49938888888888883,359.55999999999995,null,null,null,0]
[null,{"$f":"'SEK - Safesprings tjänster 2024'!B38","v":"FLAVOR-l2. c16 r64. 500"},{"$f":"'SEK - Safesprings tjänster 2024'!C38","v":16},{"$f":"'SEK - Safesprings tjänster 2024'!D38","v":64},{"$f":"'SEK - Safesprings tjänster 2024'!E38","v":500},0.65513888888888883,471.69999999999993,null,null,null,0]
[null,{"$f":"'SEK - Safesprings tjänster 2024'!B39","v":"FLAVOR-l2. c32 r64. 1000"},{"$f":"'SEK - Safesprings tjänster 2024'!C39","v":32},{"$f":"'SEK - Safesprings tjänster 2024'!D39","v":64},{"$f":"'SEK - Safesprings tjänster 2024'!E39","v":1000},0.87516666666666654,630.11999999999989,null,null,null,0]
[null,"Total",{"$f":"SUM(C26:C39*I26:I39)","v":0},{"$f":"SUM(D26:D39*I26:I39)&\" GB\"","v":"0 GB"},{"$f":"SUM(E26:E39*I26:I39)&\" GB\"","v":"0 GB"},null,null,null,{"$f":"SUM(I26:I39)","v":0},null,{"$f":"SUM(K26:K39)","v":0}]
[]
[]
[]
[null,"Flavors uden lokal disk"]
[null,"Central bloklagring kan købes til instanserne. Se \"Central bloklagring\" i prislisten."]
[null,"Produkt ID","vCPU","RAM (GB)","Lokal disk (GB)","Per time","Per 30 dage",null,"Antal",null,"Infrastruktur"]
[null,{"$f":"'SEK - Safesprings tjänster 2024'!B47","v":"FLAVOR-b2. c1 r2"},{"$f":"'SEK - Safesprings tjänster 2024'!C47","v":1},{"$f":"'SEK - Safesprings tjänster 2024'!D47","v":2},{"$f":"'SEK - Safesprings tjänster 2024'!E47","v":0},2.3486111111111107E-2,{"$f":"C47*IAAS_vcpu_EUR+D47*IAAS_ram_EUR+E47*IAAS_ssd_EUR","v":16.909999999999997},null,null,null,{"$f":"ROUNDUP(I47*G47,2)","v":0}]
[null,{"$f":"'SEK - Safesprings tjänster 2024'!B48","v":"FLAVOR-b2. c1 r4"},{"$f":"'SEK - Safesprings tjänster 2024'!C48","v":1},{"$f":"'SEK - Safesprings tjänster 2024'!D48","v":4},{"$f":"'SEK - Safesprings tjänster 2024'!E48","v":0},3.7083333333333329E-2,26.699999999999996,null,null,null,0]
[null,{"$f":"'SEK - Safesprings tjänster 2024'!B49","v":"FLAVOR-b2. c2 r4"},{"$f":"'SEK - Safesprings tjänster 2024'!C49","v":2},{"$f":"'SEK - Safesprings tjänster 2024'!D49","v":4},{"$f":"'SEK - Safesprings tjänster 2024'!E49","v":0},4.6972222222222214E-2,33.819999999999993,null,null,null,0]
[null,{"$f":"'SEK - Safesprings tjänster 2024'!B50","v":"FLAVOR-b2. c2 r8"},{"$f":"'SEK - Safesprings tjänster 2024'!C50","v":2},{"$f":"'SEK - Safesprings tjänster 2024'!D50","v":8},{"$f":"'SEK - Safesprings tjänster 2024'!E50","v":0},7.4166666666666659E-2,53.399999999999991,null,null,null,0]
[null,{"$f":"'SEK - Safesprings tjänster 2024'!B51","v":"FLAVOR-b2 .c4 r8"},{"$f":"'SEK - Safesprings tjänster 2024'!C51","v":4},{"$f":"'SEK - Safesprings tjänster 2024'!D51","v":8},{"$f":"'SEK - Safesprings tjänster 2024'!E51","v":0},9.3944444444444428E-2,67.639999999999986,null,null,null,0]
[null,{"$f":"'SEK - Safesprings tjänster 2024'!B52","v":"FLAVOR-b2. c4 r16"},{"$f":"'SEK - Safesprings tjänster 2024'!C52","v":4},{"$f":"'SEK - Safesprings tjänster 2024'!D52","v":16},{"$f":"'SEK - Safesprings tjänster 2024'!E52","v":0},0.14833333333333332,106.79999999999998,null,null,null,0]
[null,{"$f":"'SEK - Safesprings tjänster 2024'!B53","v":"FLAVOR-b2. c8 r16"},{"$f":"'SEK - Safesprings tjänster 2024'!C53","v":8},{"$f":"'SEK - Safesprings tjänster 2024'!D53","v":16},{"$f":"'SEK - Safesprings tjänster 2024'!E53","v":0},0.18788888888888886,135.27999999999997,null,null,null,0]
[null,{"$f":"'SEK - Safesprings tjänster 2024'!B54","v":"FLAVOR-b2. c8 r32"},{"$f":"'SEK - Safesprings tjänster 2024'!C54","v":8},{"$f":"'SEK - Safesprings tjänster 2024'!D54","v":32},{"$f":"'SEK - Safesprings tjänster 2024'!E54","v":0},0.29666666666666663,213.59999999999997,null,null,null,0]
[null,{"$f":"'SEK - Safesprings tjänster 2024'!B55","v":"FLAVOR-b2. c16 r32"},{"$f":"'SEK - Safesprings tjänster 2024'!C55","v":16},{"$f":"'SEK - Safesprings tjänster 2024'!D55","v":32},{"$f":"'SEK - Safesprings tjänster 2024'!E55","v":0},0.37577777777777771,270.55999999999995,null,null,null,0]
[null,{"$f":"'SEK - Safesprings tjänster 2024'!B56","v":"FLAVOR-b2. c16 r64"},{"$f":"'SEK - Safesprings tjänster 2024'!C56","v":16},{"$f":"'SEK - Safesprings tjänster 2024'!D56","v":64},{"$f":"'SEK - Safesprings tjänster 2024'!E56","v":0},0.59333333333333327,427.19999999999993,null,null,null,0]
[null,"Total",{"$f":"SUM(b2_list_vCPU*b2_list_Antal_instanser)","v":0},{"$f":"SUM(b2_list_ram*b2_list_vCPU)","v":0},"N/A",null,null,null,{"$f":"SUM(I47:I56)","v":0},null,{"$f":"SUM(K47:K56)","v":0}]
[]
[null,"Instanser med GPU och lokal disk (NVME-disk)"]
[null,"Central blocklagring kan köpas till insatserna. Se \"Central blocklagring\" i prislistan."]
[null,"Produkt ID","CPU (p) core","RAM (GB)","NVME (GB)","GPU","Per timme","Per 30 dagar","Antal instanser",null,"Infrastruktur"]
[null,"INSTANCE-glm.large.1d",4,16,250,1,{"$f":"H62/720","v":9.6527777777777786},{"$f":"C62*IAAS_vcpu_SEK+D62*IAAS_ram_SEK+E62*IAAS_nvme_SEK+F62*IAAS_gpu_SEK","v":6950},null,null,{"$f":"ROUNDUP(I62*H62,2)","v":0}]
[null,"INSTANCE-glm.xlarge.2d",8,32,500,2,19.305555555555557,13900,null,null,0]
[null,"INSTANCE-glm.2xlarge.4d",16,64,1000,4,38.611111111111114,27800,null,null,0]
[null,"INSTANCE-glm.4xlarge.8d",32,128,1000,6,60.555555555555557,43600,null,null,0]
[null,"Totalt",{"$f":"SUM(I62:I65*C62:C65)&\" st\"","v":"0 st"},{"$f":"SUM(I62:I65*D62:D65)&\" GB\"","v":"0 GB"},{"$f":"SUM(I62:I65*E62:E65)&\" GB\"","v":"0 GB"},{"$f":"SUM(I62:I65*F62:F65)&\" st\"","v":"0 st"},null,null,{"$f":"SUM(I62:I65)&\" st\"","v":"0 st"},null,{"$f":"SUM(K62:K65)","v":0}]
[]
[]
[null,"Bare Metal Compute "]
[null,"Central blocklagring kan köpas till insatserna. Se \"Central blocklagring\" i prislistan."]
[null,"Produkt ID","CPU (p) core","RAM (GB)","NVME (GB)","Per timme","Per 30 dagar",null,"Antal",null,"Infrastruktur"]
[null,"INSTANCE-p1.2xlarge.16d",16,128,3800,{"$f":"G72/720","v":9.5},{"$f":"INSTANCE_p1.2xlarge.16d_SEK","v":6840},null,null,null,{"$f":"ROUNDUP(I72*G72,2)","v":0}]
[null,"INSTANCE-p1.4xlarge.16d",32,256,3800,19,{"$f":"INSTANCE_p1.4xlarge.16d_SEK","v":13680},null,null,null,0]
[null,"INSTANCE-p1.8xlarge.32d",64,512,7600,38,{"$f":"INSTANCE_p1.8xlarge.32d_SEK","v":27360},null,null,null,0]
[null,"Totalt",{"$f":"SUM(I72:I74*C72:C74)&\" st\"","v":"0 st"},{"$f":"SUM(I72:I74*D72:D74)&\" GB\"","v":"0 GB"},{"$f":"SUM(I72:I74*E72:E74)&\" GB\"","v":"0 GB"},null,null,null,{"$f":"SUM(I72:I74)&\" st\"","v":"0 st"},null,{"$f":"SUM(K72:K74)","v":0}]
[]
[]
[null,"Central bloklagring"]
[null,"Central bloklagring giver tre kopier af data fordelt i en robust CEPH-klynge."]
[null,"Produkt ID","Beskrivelse",null,null,"Per time","Per 30 dage",null,"Antal (GB)",null,"Lagring"]
[null,"VOLUME-large","HDD-backed 3-replica Ceph",null,null,1.4833333333333332E-4,{"$f":"VOLUME_large_EUR","v":0.10679999999999999},null,null,null,{"$f":"ROUNDUP(I81*G81,2)","v":0}]
[null,"VOLUME-fast","SSD-backed 3-replica Ceph",null,null,4.4500000000000003E-4,{"$f":"VOLUME_fast_EUR","v":0.32040000000000002},null,null,null,0]
[null,"VOLUME-snapshot","Snapshot of image",null,null,1.4833333333333332E-4,{"$f":"VOLUME_large_EUR","v":0.10679999999999999},null,null,null,0]
[null,"Total",{"$nulls":6},{"$f":"SUM(I81:I83)&\" GB\"","v":"0 GB"},null,{"$f":"SUM(K81:K83)","v":0}]
[]
[]
[null,"Safespring Storage | S3"]
[]
[]
[null,"Kontakt os for rabatter på større lagermængder. Prismodellen er baseret på antallet af lagrede TB pr. måned."]
[null,"Alle priser er i EUR, eksklusive moms. Fakturaen vil være i DKK, hvor den gennemsnitlige valutakurs, baseret på valutakurserne fra ECB, pr. måned bruges til at beregne priserne."]
[null,"Vejledning: Udfyld det ønskede antal i de farvede felter."]
[]
[null,"Produkt ID",{"$nulls":4},"Per TB i 30 dage",null,"Antal (TB)",null,"Lagring"]
[null,"S3-archive",{"$nulls":4},{"$f":"S3_archive.50_EUR","v":31.15},null,null,null,{"$f":"I95*G95","v":0}]
[null,"S3-storage",{"$nulls":4},{"$f":"S3_storage50_EUR","v":44.5},null,null,null,0]
[null,"Total",{"$nulls":8},{"$f":"SUM(K95:K96)","v":0}]
[]
[null,"S3 Archive"]
[null,"Produkt ID","Antal TB","Per TB/månad"]
[null,"S3-archive",null,null,{"$f":"_xlfn.IFS(H101<50,D102,H101<100,D103,H101<500,D104,H101<1000,D105,H101>999,D106)","v":185},null,null,600,"TB",null,{"$f":"_xlfn.IFS(H101<1000,ROUNDUP(H101*E101,2),H101>999,E101)","v":111000}]
[null,"S3-archive","0 - 49",{"$f":"S3_archive.50_SEK","v":350}]
[null,"S3-archive","50 - 99",{"$f":"S3_archive.100_SEK","v":270}]
[null,"S3-archive","100 - 499",{"$f":"S3_archive.500_SEK","v":200}]
[null,"S3-archive","500 - 999",{"$f":"S3_archive.1000_SEK","v":185}]
[null,"S3-archive","1000 - ",{"$f":"S3_archive.quote_SEK","v":"Be om offert"}]
[null,"  Totalt",{"$nulls":8},{"$f":"K101","v":111000}]
[]
[]
[null,"Safespring Backup | SP"]
[]
[]
[null,"Cloud backup-løsning for lokale servere eller cloud-servere baseret på Spectrum Protect (TSM)."]
[null,"Alle priser er i EUR, eksklusive moms. Fakturaen vil være i DKK, hvor den gennemsnitlige valutakurs, baseret på valutakurserne fra ECB, pr. måned bruges til at beregne priserne."]
[null,"Vejledning: Udfyld det ønskede antal i de farvede felter."]
[]
[null,"Produkt ID",null,null,"Fast månedlig pris",null,"Per GB i 30 dage",null,"Antal (GB)","Deduplicering  1","Backup"]
[null,"BAAS-on.demand 2",null,null,"N/A",null,{"$f":"BAAS_on.demand_EUR","v":0.21804999999999999},null,null,"N/A",{"$f":"ROUNDUP(I118*G118,2)","v":0}]
[null,"BAAS-small 3",null,null,{"$f":"BAAS_small.fee_EUR","v":489.5},null,{"$f":"BAAS_small_EUR","v":0.15575},null,null,0.75,{"$f":"IF(I119>0,$E$119+($G$119*(I119*(1-$J$119))),0)","v":0}]
[null,"BAAS-large 4",null,null,{"$f":"BAAS_large.fee_EUR","v":845.5},null,{"$f":"BAAS_large_EUR","v":8.1879999999999994E-2},null,null,0.75,{"$f":"IF(I120>0,$E$120+($G$120*(I120*(1-$J$120))),0)","v":0}]
[null,"Total",{"$nulls":6},{"$f":"SUM(I118:I120)&\" GB\"","v":"0 GB"},null,{"$f":"SUM(K118:K120)","v":0}]
[]
[]
[]
[null,"Compliant Kubernetes"]
[]
[]
[null,"Run Compliant Kubernetes as a managed service. Safespring Compute will be added."]
[null,"Safespring Compute will be added. We can work with you to calculate your price."]
[null,"Instructions: Fill in the desired quantity in the colored fields."]
[]
[null,"Product ID","Support hours",null,"Availability",null,"Fixed monthly price",null,null,null,"Pris"]
[null,"PAAS-man.kubernetes8","08:00 - 17:00",null,"Weekdays",null,{"$f":"PAAS_man.kubernetes_EUR","v":"Request a quote"},null,null,1,{"$f":"IF(J133=1,G133,\" \")","v":"Request a quote"}]
[null,"PAAS-man.kubernetes24","Around the clock",null,"All days",null,{"$f":"PAAS_man.kubernetes8_EUR","v":"Request a quote"},null,null,null,{"$f":"IF(J133=3,G134,\" \")","v":" "}]
[null,"Total",{"$nulls":8},{"$f":"SUM(K133:K134)","v":0}]
[]
[]
[]
[null,"Netværk og software"]
[]
[]
[null,"Alle priser er i EUR, eksklusive moms. Fakturaen vil være i DKK, hvor den gennemsnitlige valutakurs, baseret på valutakurserne fra ECB, pr. måned bruges til at beregne priserne."]
[]
[null,"Network"]
[null,"Safespring tilbyder flere netværkstjenester."]
[null,"Produkt ID"," Type",null,"Beskrivelse",{"$nulls":4},"Fakturering pr.","Pr. måned"]
[null,"NET-publicv4","IPv4",null,"Public",{"$nulls":4},"IP-adresse",{"$f":"NET_publicv4_EUR","v":2.2250000000000001}]
[null,"NET-publicv6","IPv6",null,"Public",{"$nulls":4},"N/A",{"$f":"NET_publicv6_EUR","v":0}]
[null,"NET-ingress","Dataoverførsel",{"$nulls":6},"N/A",{"$f":"NET_ingress_EUR","v":0}]
[null,"NET-egress","Dataoverførsel",{"$nulls":6},"N/A",{"$f":"NET_egress_EUR","v":0}]
[null,"NET-mgn.slb","Managed SLB ",null,"Load balancer baseret på to l2.c4.r8.100",{"$nulls":4},"Instans",{"$f":"NET_mgn.slb_EUR","v":186}]
[null,"NET-rdns","Reverse DNS names",{"$nulls":6},"N/A",{"$f":"NET_rdns_EUR","v":0}]
[null,"NET-byoip","Bring your own IP prefixes",{"$nulls":6},"N/A",0]
[]
[]
[]
[null,"Software og licenser"]
[null,"Safespring tilbyder flere software og licenser."]
[null,"Produkt ID",null,null,"Beskrivelse",{"$nulls":4},"Fakturering pr.","Pr. måned"]
[null,"SW-win.ser.2022",null,null,"Microsoft Windows Server",{"$nulls":4},"vCPU",{"$f":"SW_win.ser.201X_EUR","v":15.574999999999999}]
[null,"SW-ms.sql.ser",null,null,"Microsoft SQL Server Standard",{"$nulls":4},"vCPU",{"$f":"SW_ms.sql.ser_EUR","v":109.381}]
[null,"SW-ms.sql.ser.ent",null,null,"Microsoft SQL Server Enterprise",{"$nulls":4},"vCPU",{"$f":"SW_ms.sql.ser.ent_EUR","v":424.17399999999998}]
[null,"SW-nextcloud",null,null,"Nextcloud Hub",{"$nulls":4},"Konto",{"$f":"SW_nextcloud_EUR","v":6}]
[]
[]
[]
[null,"Support"]
[]
[]
[null,"Support gælder for Safespring Compute, Safespring Storage og Safespring Backup."]
[null,"Alle priser er i EUR, eksklusive moms. Fakturaen vil være i DKK, hvor den gennemsnitlige valutakurs, baseret på valutakurserne fra ECB, pr. måned bruges til at beregne priserne."]
[]
[null,"Support"]
[null,"Safespring tilbyder flere support-aftaler."]
[null,"Produkt ID",null,"Beskrivelse",{"$nulls":4},"Fakturering pr.",null,"Pr. måned"]
[null,"SUPPORT-base",null,"Support til Safesprings tjenester",{"$nulls":4},"N/A",null,0]
[null,"SUPPORT-standard",null,"Adgang til chat-rum med support og teknikere",{"$nulls":4},"Total volumen",null,"3 % of total volumen 5"]
[null,"SUPPORT-premium",null,"Dedikeret servicechef med kvartalsvise driftsmøder",{"$nulls":4},"Måned",null,2140]
[]
[]
[null,"Konsulenttjenester"]
[null,"Safespring tilbyder flere konsulenttjenester."]
[null,"Produkt ID",null,"Beskrivelse",{"$nulls":4},"Fakturering pr.",null,"Pr. måned"]
[null,"PS-consult.jun",null,"Cloud Infrastructure Consultant, junior expertise level",{"$nulls":4},"Time",null,{"$f":"PS_consult.jun_EUR","v":100.303}]
[null,"PS-consult.sen",null,"Cloud infrastructure Consultant, senior expertise level",{"$nulls":4},"Time",null,{"$f":"PS_consult.sen_EUR","v":122.28599999999999}]
[null,"PS-cloudarch.jun",null,"Cloud Infrastructure Architect Consultant, junior expertise level",{"$nulls":4},"Time",null,{"$f":"PS_cloudarch.jun_EUR","v":113.65299999999999}]
[null,"PS-cloudarch.sen",null,"Cloud Infrastructure Architect Consultant, senior expertise level",{"$nulls":4},"Time",null,{"$f":"PS_cloudarch.sen_EUR","v":122.28599999999999}]
[null,"PS-pm.jun",null,"Project Manager, junior expertise level",{"$nulls":4},"Time",null,{"$f":"PS_pm.jun_EUR","v":101.371}]
[null,"PS-pm.sen",null,"Project Manager, senior expertise level",{"$nulls":4},"Time",null,{"$f":"PS_pm.sen_EUR","v":122.28599999999999}]
[]
[]
[null,"Uddannelser"]
[null,"Safespring tilbyder flere uddannelser i IaaS og cloud."]
[null,"Produkt ID",null,"Beskrivelse",null,null,"Varighed",null,"Fakturering pr.",null,"Pris"]
[null,"COURSE-intro.iaas",null,"Introduktion til \"infrastruktur som en tjeneste\"",null,null,"En dag",null,"Lejlighed",null,560]
[null,"COURSE-cxo.strategy",null,"Cloud-strategi for ledelsesgrupper",null,null,"En dag",null,"Lejlighed",null,560]
[null,"COURSE-intro.cloud",null,"Introduktion til cloud-infrastrukturteknologi",null,null,"Fire dage",null,"Lejlighed",null,2230]
[null,"COURSE-devops.microservices",null,"Moderne DevOps og \"microservices\"",null,null,"Fire dage",null,"Lejlighed",null,2230]
[]
[]
[]
[]
[]
[]
[null,"Månedlig omkostning"]
[]
[]
[null,"Alle priser er i EUR, eksklusive moms. Fakturaen vil være i DKK, hvor den gennemsnitlige valutakurs, baseret på valutakurserne fra ECB, pr. måned bruges til at beregne priserne."]
[]
[null,"Kontakt Safespring for et komplet tilbud"]
[null,"Telefon: +46 8-55 10 73 56"]
[null,"hello@safespring.com"]
[]
[null,"Produkt",{"$nulls":7},"Månedlig omkostning"]
[null,"Safespring Compute",{"$f":"SUM(I26:I37*C26:C37)+SUM(I47:I56*b2_list_Antal_instanser)+SUM(I62:I65*C62:C65)+SUM(I72:I74*C72:C74)&\" vCPU\"&\"     /     \"&SUM(I26:I37*E26)+SUM(b2_list_vCPU*b2_list_ram)+SUM(I62:I65*D62:D65)+SUM(I72:I74*D72:D74)&\" GB RAM\"&\"     /     \"&SUM(I26:I37*E26:E37)+SUM(b2_list_vCPU*E47:E56)+SUM(I62:I65*E62:E65)+SUM(I72:I74*E72:E74)&\" GB  NVMe\"&\"     /     \"&SUM(I81:I83)&\" GB Blocklagring\"","v":"0 vCPU     /     0 GB RAM     /     0 GB  NVMe     /     0 GB Blocklagring"},{"$nulls":6},{"$f":"K66+K75+K57+K40+K84","v":0}]
[null,"Safespring Storage",{"$f":"K96&\" TB - S3\"&\"     /     \"&K95&\" TB - Archive\"","v":"0 TB - S3     /     0 TB - Archive"},{"$nulls":6},{"$f":"K97","v":0}]
[null,"Safespring Backup",{"$nulls":7},{"$f":"K121","v":0}]
[null,"Total",{"$nulls":7},{"$f":"SUM(J215:J217)","v":0}]
[]
[]
[]
[]
[null,"1 Deduplicering er en datareduktion, der udføres i tjenesten. Afhængigt af data varierer det normalt mellem 45 % - 90 %."]
[null,"2 Prisen er pr. beskyttet GB på klienten."]
[null,"3 Prisen er pr. GB, der er gemt i tjenesten efter deduplicering og komprimering."]
[null,"4 Prisen er pr. GB, der er gemt i tjenesten efter deduplicering og komprimering. Tjenesten inkluderer 1000 GB i den faste månedlige pris."]
[null,"5 Supportgebyret udgør 3 % af den samlede volumen med et minimumsgebyr på 150 EUR pr. måned."]

{"sheet":"EUR - Safespring services 2024","index":3,"n_rows":227,"n_cols":11,"rows_kept":227,"cut":false,"hidden":false,"merged":[[166,1,168,10],[169,1,169,5],[170,1,170,5],[204,1,206,6],[207,1,207,5],[132,2,132,3],[132,4,132,5],[133,2,133,3],[133,4,133,5],[138,1,140,6],[109,1,111,6],[124,1,126,6],[131,2,131,3],[131,4,131,5],[131,6,131,7],[104,3,104,4],[104,5,104,6],[104,7,104,8],[105,3,105,4],[105,5,105,6],[105,7,105,8],[102,3,102,4],[102,5,102,6],[102,7,102,8],[103,3,103,4],[103,5,103,6],[103,7,103,8],[99,3,99,4],[99,5,99,6],[99,7,99,8],[101,3,101,4],[101,5,101,6],[101,7,101,8],[3,1,3,2],[14,1,16,6],[59,1,59,4],[69,1,69,4],[86,1,88,6]]}
[]
[]
[]
[]
[null,"Price calculator 2024-05-06"]
[]
[]
[null,"Contact Safespring",null,"Currency"]
[null,"Call us: +46 8-55 10 73 56"]
[null,"hello@safespring.com"]
[]
[]
[]
[]
[null,"Safespring Compute | IaaS"]
[]
[]
[null,"Infrastructure as a service can run on an open source license or with a Windows license."]
[null,"All prices are in EUR, excluding VAT."]
[null,"Instructions: Fill in the desired quantity in the colored fields."]
[]
[]
[null,"Flavors with local NVMe storage"]
[null,"Central block storage can be purchased for the instances. See \"Central block storage\" in the price list."]
[null,"Product ID","vCPU","RAM (GB)","Local disc (GB)","Hourly","30 days",null,"Amount",null,"Infrastructure"]
[null,{"$f":"'SEK - Safesprings tjänster 2024'!B26","v":"FLAVOR-l2. c2 r4. 100"},{"$f":"'SEK - Safesprings tjänster 2024'!C26","v":2},{"$f":"'SEK - Safesprings tjänster 2024'!D26","v":4},{"$f":"'SEK - Safesprings tjänster 2024'!E26","v":100},{"$f":"G26/720","v":5.9333333333333321E-2},{"$f":"C26*IAAS_vcpu_EUR+D26*IAAS_ram_EUR+E26*IAAS_nvme_EUR","v":42.719999999999992},null,null,null,{"$f":"ROUNDUP(I26*G26,2)","v":0}]
[null,{"$f":"'SEK - Safesprings tjänster 2024'!B27","v":"FLAVOR-l2. c2 r4. 500"},{"$f":"'SEK - Safesprings tjänster 2024'!C27","v":2},{"$f":"'SEK - Safesprings tjänster 2024'!D27","v":4},{"$f":"'SEK - Safesprings tjänster 2024'!E27","v":500},0.10877777777777776,78.319999999999993,null,null,null,0]
[null,{"$f":"'SEK - Safesprings tjänster 2024'!B28","v":"FLAVOR-l2. c2 r4. 1000"},{"$f":"'SEK - Safesprings tjänster 2024'!C28","v":2},{"$f":"'SEK - Safesprings tjänster 2024'!D28","v":4},{"$f":"'SEK - Safesprings tjänster 2024'!E28","v":1000},0.17058333333333334,122.82,null,null,null,0]
[null,{"$f":"'SEK - Safesprings tjänster 2024'!B29","v":"FLAVOR-l2. c4 r8. 100"},{"$f":"'SEK - Safesprings tjänster 2024'!C29","v":4},{"$f":"'SEK - Safesprings tjänster 2024'!D29","v":8},{"$f":"'SEK - Safesprings tjänster 2024'!E29","v":100},0.10630555555555554,76.539999999999992,null,null,null,0]
[null,{"$f":"'SEK - Safesprings tjänster 2024'!B30","v":"FLAVOR-l2. c4 r8. 500"},{"$f":"'SEK - Safesprings tjänster 2024'!C30","v":4},{"$f":"'SEK - Safesprings tjänster 2024'!D30","v":8},{"$f":"'SEK - Safesprings tjänster 2024'!E30","v":500},0.15574999999999997,112.13999999999999,null,null,null,0]
[null,{"$f":"'SEK - Safesprings tjänster 2024'!B31","v":"FLAVOR-l2. c4 r8. 1000"},{"$f":"'SEK - Safesprings tjänster 2024'!C31","v":4},{"$f":"'SEK - Safesprings tjänster 2024'!D31","v":8},{"$f":"'SEK - Safesprings tjänster 2024'!E31","v":1000},0.21755555555555553,156.63999999999999,null,null,null,0]
[null,{"$f":"'SEK - Safesprings tjänster 2024'!B32","v":"FLAVOR-l2. c8 r16. 100"},{"$f":"'SEK - Safesprings tjänster 2024'!C32","v":8},{"$f":"'SEK - Safesprings tjänster 2024'!D32","v":16},{"$f":"'SEK - Safesprings tjänster 2024'!E32","v":100},0.20024999999999998,144.17999999999998,null,null,null,0]
[null,{"$f":"'SEK - Safesprings tjänster 2024'!B33","v":"FLAVOR-l2. c8 r16. 500"},{"$f":"'SEK - Safesprings tjänster 2024'!C33","v":8},{"$f":"'SEK - Safesprings tjänster 2024'!D33","v":16},{"$f":"'SEK - Safesprings tjänster 2024'!E33","v":500},0.24969444444444441,179.77999999999997,null,null,null,0]
[null,{"$f":"'SEK - Safesprings tjänster 2024'!B34","v":"FLAVOR-l2. c8 r16. 1000"},{"$f":"'SEK - Safesprings tjänster 2024'!C34","v":8},{"$f":"'SEK - Safesprings tjänster 2024'!D34","v":16},{"$f":"'SEK - Safesprings tjänster 2024'!E34","v":1000},0.31149999999999994,224.27999999999997,null,null,null,0]
[null,{"$f":"'SEK - Safesprings tjänster 2024'!B35","v":"FLAVOR-l2. c16 r32. 100"},{"$f":"'SEK - Safesprings tjänster 2024'!C35","v":16},{"$f":"'SEK - Safesprings tjänster 2024'!D35","v":32},{"$f":"'SEK - Safesprings tjänster 2024'!E35","v":100},0.38813888888888876,279.45999999999992,null,null,null,0]
[null,{"$f":"'SEK - Safesprings tjänster 2024'!B36","v":"FLAVOR-l2. c16 r32. 500"},{"$f":"'SEK - Safesprings tjänster 2024'!C36","v":16},{"$f":"'SEK - Safesprings tjänster 2024'!D36","v":32},{"$f":"'SEK - Safesprings tjänster 2024'!E36","v":500},0.43758333333333327,315.05999999999995,null,null,null,0]
[null,{"$f":"'SEK - Safesprings tjänster 2024'!B37","v":"FLAVOR-l2. c16 r32. 1000"},{"$f":"'SEK - Safesprings tjänster 2024'!C37","v":16},{"$f":"'SEK - Safesprings tjänster 2024'!D37","v":32},{"$f":"'SEK - Safesprings tjänster 2024'!E37","v":1000},0.49938888888888883,359.55999999999995,null,null,null,0]
[null,{"$f":"'SEK - Safesprings tjänster 2024'!B38","v":"FLAVOR-l2. c16 r64. 500"},{"$f":"'SEK - Safesprings tjänster 2024'!C38","v":16},{"$f":"'SEK - Safesprings tjänster 2024'!D38","v":64},{"$f":"'SEK - Safesprings tjänster 2024'!E38","v":500},0.65513888888888883,471.69999999999993,null,null,null,0]
[null,{"$f":"'SEK - Safesprings tjänster 2024'!B39","v":"FLAVOR-l2. c32 r64. 1000"},{"$f":"'SEK - Safesprings tjänster 2024'!C39","v":32},{"$f":"'SEK - Safesprings tjänster 2024'!D39","v":64},{"$f":"'SEK - Safesprings tjänster 2024'!E39","v":1000},0.87516666666666654,630.11999999999989,null,null,null,0]
[null,"Total",{"$f":"SUM(C26:C39*I26:I39)","v":0},{"$f":"SUM(D26:D39*I26:I39)&\" GB\"","v":"0 GB"},{"$f":"SUM(E26:E39*I26:I39)&\" GB\"","v":"0 GB"},null,null,null,{"$f":"SUM(I26:I39)","v":0},null,{"$f":"SUM(K26:K39)","v":0}]
[]
[]
[]
[null,"Flavors without local storage"]
[null,"Central block storage can be purchased for the instances. See \"Central block storage\" in the price list."]
[null,"Product ID","vCPU","RAM (GB)","Local disc (GB)","Hourly","30 days",null,"Amount",null,"Infrastructure"]
[null,{"$f":"'SEK - Safesprings tjänster 2024'!B47","v":"FLAVOR-b2. c1 r2"},{"$f":"'SEK - Safesprings tjänster 2024'!C47","v":1},{"$f":"'SEK - Safesprings tjänster 2024'!D47","v":2},{"$f":"'SEK - Safesprings tjänster 2024'!E47","v":0},2.3486111111111107E-2,{"$f":"C47*IAAS_vcpu_EUR+D47*IAAS_ram_EUR+E47*IAAS_ssd_EUR","v":16.909999999999997},null,null,null,{"$f":"ROUNDUP(I47*G47,2)","v":0}]
[null,{"$f":"'SEK - Safesprings tjänster 2024'!B48","v":"FLAVOR-b2. c1 r4"},{"$f":"'SEK - Safesprings tjänster 2024'!C48","v":1},{"$f":"'SEK - Safesprings tjänster 2024'!D48","v":4},{"$f":"'SEK - Safesprings tjänster 2024'!E48","v":0},3.7083333333333329E-2,26.699999999999996,null,null,null,0]
[null,{"$f":"'SEK - Safesprings tjänster 2024'!B49","v":"FLAVOR-b2. c2 r4"},{"$f":"'SEK - Safesprings tjänster 2024'!C49","v":2},{"$f":"'SEK - Safesprings tjänster 2024'!D49","v":4},{"$f":"'SEK - Safesprings tjänster 2024'!E49","v":0},4.6972222222222214E-2,33.819999999999993,null,null,null,0]
[null,{"$f":"'SEK - Safesprings tjänster 2024'!B50","v":"FLAVOR-b2. c2 r8"},{"$f":"'SEK - Safesprings tjänster 2024'!C50","v":2},{"$f":"'SEK - Safesprings tjänster 2024'!D50","v":8},{"$f":"'SEK - Safesprings tjänster 2024'!E50","v":0},7.4166666666666659E-2,53.399999999999991,null,null,null,0]
[null,{"$f":"'SEK - Safesprings tjänster 2024'!B51","v":"FLAVOR-b2 .c4 r8"},{"$f":"'SEK - Safesprings tjänster 2024'!C51","v":4},{"$f":"'SEK - Safesprings tjänster 2024'!D51","v":8},{"$f":"'SEK - Safesprings tjänster 2024'!E51","v":0},9.3944444444444428E-2,67.639999999999986,null,null,null,0]
[null,{"$f":"'SEK - Safesprings tjänster 2024'!B52","v":"FLAVOR-b2. c4 r16"},{"$f":"'SEK - Safesprings tjänster 2024'!C52","v":4},{"$f":"'SEK - Safesprings tjänster 2024'!D52","v":16},{"$f":"'SEK - Safesprings tjänster 2024'!E52","v":0},0.14833333333333332,106.79999999999998,null,null,null,0]
[null,{"$f":"'SEK - Safesprings tjänster 2024'!B53","v":"FLAVOR-b2. c8 r16"},{"$f":"'SEK - Safesprings tjänster 2024'!C53","v":8},{"$f":"'SEK - Safesprings tjänster 2024'!D53","v":16},{"$f":"'SEK - Safesprings tjänster 2024'!E53","v":0},0.18788888888888886,135.27999999999997,null,null,null,0]
[null,{"$f":"'SEK - Safesprings tjänster 2024'!B54","v":"FLAVOR-b2. c8 r32"},{"$f":"'SEK - Safesprings tjänster 2024'!C54","v":8},{"$f":"'SEK - Safesprings tjänster 2024'!D54","v":32},{"$f":"'SEK - Safesprings tjänster 2024'!E54","v":0},0.29666666666666663,213.59999999999997,null,null,null,0]
[null,{"$f":"'SEK - Safesprings tjänster 2024'!B55","v":"FLAVOR-b2. c16 r32"},{"$f":"'SEK - Safesprings tjänster 2024'!C55","v":16},{"$f":"'SEK - Safesprings tjänster 2024'!D55","v":32},{"$f":"'SEK - Safesprings tjänster 2024'!E55","v":0},0.37577777777777771,270.55999999999995,null,null,null,0]
[null,{"$f":"'SEK - Safesprings tjänster 2024'!B56","v":"FLAVOR-b2. c16 r64"},{"$f":"'SEK - Safesprings tjänster 2024'!C56","v":16},{"$f":"'SEK - Safesprings tjänster 2024'!D56","v":64},{"$f":"'SEK - Safesprings tjänster 2024'!E56","v":0},0.59333333333333327,427.19999999999993,null,null,null,0]
[null,"Total",{"$f":"SUM(b2_list_vCPU*b2_list_Antal_instanser)","v":0},{"$f":"SUM(b2_list_ram*b2_list_vCPU)","v":0},"N/A",null,null,null,{"$f":"SUM(I47:I56)","v":0},null,{"$f":"SUM(K47:K56)","v":0}]
[]
[null,"Instanser med GPU och lokal disk (NVME-disk)"]
[null,"Central blocklagring kan köpas till insatserna. Se \"Central blocklagring\" i prislistan."]
[null,"Produkt ID","CPU (p) core","RAM (GB)","NVME (GB)","GPU","Per timme","Per 30 dagar","Antal instanser",null,"Infrastruktur"]
[null,"INSTANCE-glm.large.1d",4,16,250,1,{"$f":"H62/720","v":9.6527777777777786},{"$f":"C62*IAAS_vcpu_SEK+D62*IAAS_ram_SEK+E62*IAAS_nvme_SEK+F62*IAAS_gpu_SEK","v":6950},null,null,{"$f":"ROUNDUP(I62*H62,2)","v":0}]
[null,"INSTANCE-glm.xlarge.2d",8,32,500,2,19.305555555555557,13900,null,null,0]
[null,"INSTANCE-glm.2xlarge.4d",16,64,1000,4,38.611111111111114,27800,null,null,0]
[null,"INSTANCE-glm.4xlarge.8d",32,128,1000,6,60.555555555555557,43600,null,null,0]
[null,"Totalt",{"$f":"SUM(I62:I65*C62:C65)&\" st\"","v":"0 st"},{"$f":"SUM(I62:I65*D62:D65)&\" GB\"","v":"0 GB"},{"$f":"SUM(I62:I65*E62:E65)&\" GB\"","v":"0 GB"},{"$f":"SUM(I62:I65*F62:F65)&\" st\"","v":"0 st"},null,null,{"$f":"SUM(I62:I65)&\" st\"","v":"0 st"},null,{"$f":"SUM(K62:K65)","v":0}]
[]
[]
[null,"Bare Metal Compute "]
[null,"Central blocklagring kan köpas till insatserna. Se \"Central blocklagring\" i prislistan."]
[null,"Produkt ID","CPU (p) core","RAM (GB)","NVME (GB)","Per timme","Per 30 dagar",null,"Antal",null,"Infrastruktur"]
[null,"INSTANCE-p1.2xlarge.16d",16,128,3800,{"$f":"G72/720","v":9.5},{"$f":"INSTANCE_p1.2xlarge.16d_SEK","v":6840},null,null,null,{"$f":"ROUNDUP(I72*G72,2)","v":0}]
[null,"INSTANCE-p1.4xlarge.16d",32,256,3800,19,{"$f":"INSTANCE_p1.4xlarge.16d_SEK","v":13680},null,null,null,0]
[null,"INSTANCE-p1.8xlarge.32d",64,512,7600,38,{"$f":"INSTANCE_p1.8xlarge.32d_SEK","v":27360},null,null,null,0]
[null,"Totalt",{"$f":"SUM(I72:I74*C72:C74)&\" st\"","v":"0 st"},{"$f":"SUM(I72:I74*D72:D74)&\" GB\"","v":"0 GB"},{"$f":"SUM(I72:I74*E72:E74)&\" GB\"","v":"0 GB"},null,null,null,{"$f":"SUM(I72:I74)&\" st\"","v":"0 st"},null,{"$f":"SUM(K72:K74)","v":0}]
[]
[]
[null,"Central block storage"]
[null,"Central block storage provides three copies of the data distributed in a robust CEPH cluster."]
[null,"Product ID","Description",null,null,"Hourly","30 days",null,"Amount (GB)",null,"Storage"]
[null,"VOLUME-large","HDD-backed 3-replica Ceph",null,null,1.4833333333333332E-4,{"$f":"VOLUME_large_EUR","v":0.10679999999999999},null,null,null,{"$f":"ROUNDUP(I81*G81,2)","v":0}]
[null,"VOLUME-fast","SSD-backed 3-replica Ceph",null,null,4.4500000000000003E-4,{"$f":"VOLUME_fast_EUR","v":0.32040000000000002},null,null,null,0]
[null,"VOLUME-snapshot","Snapshot of image",null,null,1.4833333333333332E-4,{"$f":"VOLUME_large_EUR","v":0.10679999999999999},null,null,null,0]
[null,"Total",{"$nulls":6},{"$f":"SUM(I81:I83)&\" GB\"","v":"0 GB"},null,{"$f":"SUM(K81:K83)","v":0}]
[]
[]
[null,"Safespring Storage | S3"]
[]
[]
[null,"Contact us for discounts on larger storage quantities. Pricing model based on the number of stored TB per month."]
[null,"All prices are in EUR, excluding VAT."]
[null,"Instructions: Fill in the desired quantity in the colored fields."]
[]
[null,"Product ID",{"$nulls":4},"Per TB for 30 days",null,"Amount (TB)",null,"Storage"]
[null,"S3-archive",{"$nulls":4},{"$f":"S3_archive.50_EUR","v":31.15},null,null,null,{"$f":"I95*G95","v":0}]
[null,"S3-storage",{"$nulls":4},{"$f":"S3_storage50_EUR","v":44.5},null,null,null,0]
[null,"Total",{"$nulls":8},{"$f":"SUM(K95:K96)","v":0}]
[]
[null,"S3 Archive"]
[null,"Produkt ID","Antal TB","Per TB/månad"]
[null,"S3-archive",null,null,{"$f":"_xlfn.IFS(H101<50,D102,H101<100,D103,H101<500,D104,H101<1000,D105,H101>999,D106)","v":185},null,null,600,"TB",null,{"$f":"_xlfn.IFS(H101<1000,ROUNDUP(H101*E101,2),H101>999,E101)","v":111000}]
[null,"S3-archive","0 - 49",{"$f":"S3_archive.50_SEK","v":350}]
[null,"S3-archive","50 - 99",{"$f":"S3_archive.100_SEK","v":270}]
[null,"S3-archive","100 - 499",{"$f":"S3_archive.500_SEK","v":200}]
[null,"S3-archive","500 - 999",{"$f":"S3_archive.1000_SEK","v":185}]
[null,"S3-archive","1000 - ",{"$f":"S3_archive.quote_SEK","v":"Be om offert"}]
[null,"  Totalt",{"$nulls":8},{"$f":"K101","v":111000}]
[]
[]
[null,"Safespring Backup | SP"]
[]
[]
[null,"Cloud backup solution for on-prem or cloud servers based on Spectrum Protect (TSM)."]
[null,"All prices are in EUR, excluding VAT."]
[null,"Instructions: Fill in the desired quantity in the colored fields."]
[]
[null,"Product ID",null,null,"Fixed monthly price",null,"Per GB / 30 days",null,"Amount (GB)","Deduplication  1","Backup"]
[null,"BAAS-on.demand 2",null,null,"N/A",null,{"$f":"BAAS_on.demand_EUR","v":0.21804999999999999},null,null,"N/A",{"$f":"ROUNDUP(I118*G118,2)","v":0}]
[null,"BAAS-small 3",null,null,{"$f":"BAAS_small.fee_EUR","v":489.5},null,{"$f":"BAAS_small_EUR","v":0.15575},null,null,0.75,{"$f":"IF(I119>0,$E$119+($G$119*(I119*(1-$J$119))),0)","v":0}]
[null,"BAAS-large 4",null,null,{"$f":"BAAS_large.fee_EUR","v":845.5},null,{"$f":"BAAS_large_EUR","v":8.1879999999999994E-2},null,null,0.75,{"$f":"IF(I120>0,$E$120+($G$120*(I120*(1-$J$120))),0)","v":0}]
[null,"Total",{"$nulls":6},{"$f":"SUM(I118:I120)&\" GB\"","v":"0 GB"},null,{"$f":"SUM(K118:K120)","v":0}]
[]
[]
[]
[null,"Compliant Kubernetes"]
[]
[]
[null,"Run Compliant Kubernetes as a managed service. Safespring Compute will be added."]
[null,"Safespring Compute will be added. We can work with you to calculate your price."]
[null,"Instructions: Fill in the desired quantity in the colored fields."]
[]
[null,"Product ID","Support hours",null,"Availability",null,"Fixed monthly price",null,null,null,"Pris"]
[null,"PAAS-man.kubernetes8","08:00 - 17:00",null,"Weekdays",null,{"$f":"PAAS_man.kubernetes_EUR","v":"Request a quote"},null,null,1,{"$f":"IF(J133=1,G133,\" \")","v":"Request a quote"}]
[null,"PAAS-man.kubernetes24","Around the clock",null,"All days",null,{"$f":"PAAS_man.kubernetes8_EUR","v":"Request a quote"},null,null,null,{"$f":"IF(J133=3,G134,\" \")","v":" "}]
[null,"Total",{"$nulls":8},{"$f":"SUM(K133:K134)","v":0}]
[]
[]
[]
[null,"Network and software"]
[]
[]
[null,"All prices are in EUR, excluding VAT."]
[]
[null,"Network"]
[null,"Safespring offers several network services."]
[null,"Product ID"," Type",null,"Description",{"$nulls":4},"Billing per","Monthly"]
[null,"NET-publicv4","IPv4",null,"Public",{"$nulls":4},"IP-address",{"$f":"NET_publicv4_EUR","v":2.2250000000000001}]
[null,"NET-publicv6","IPv6",null,"Public",{"$nulls":4},"N/A",{"$f":"NET_publicv6_EUR","v":0}]
[null,"NET-ingress","Data transfer",{"$nulls":6},"N/A",{"$f":"NET_ingress_EUR","v":0}]
[null,"NET-egress","Data transfer",{"$nulls":6},"N/A",{"$f":"NET_egress_EUR","v":0}]
[null,"NET-mgn.slb","Managed SLB ",null,"Load balancer based on two l2.c4.r8.100",{"$nulls":4},"Instance",{"$f":"NET_mgn.slb_EUR","v":186}]
[null,"NET-rdns","Reverse DNS names",{"$nulls":6},"N/A",{"$f":"NET_rdns_EUR","v":0}]
[null,"NET-byoip","Bring your own IP prefixes",{"$nulls":6},"N/A",0]
[]
[]
[]
[null,"Software and licenses"]
[null,"Safespring offers several software and licenses."]
[null,"Product ID",null,null,"Description",{"$nulls":4},"Billing per","Monthly"]
[null,"SW-win.ser.2022",null,null,"Microsoft Windows Server",{"$nulls":4},"vCPU",{"$f":"SW_win.ser.201X_EUR","v":15.574999999999999}]
[null,"SW-ms.sql.ser",null,null,"Microsoft SQL Server Standard",{"$nulls":4},"vCPU",{"$f":"SW_ms.sql.ser_EUR","v":109.381}]
[null,"SW-ms.sql.ser.ent",null,null,"Microsoft SQL Server Enterprise",{"$nulls":4},"vCPU",{"$f":"SW_ms.sql.ser.ent_EUR","v":424.17399999999998}]
[null,"SW-nextcloud",null,null,"Nextcloud Hub",{"$nulls":4},"Account",{"$f":"SW_nextcloud_EUR","v":6}]
[]
[]
[]
[null,"Support"]
[]
[]
[null,"Support applies to Safespring Compute, Safespring Storage and Safespring Backup."]
[null,"All prices stated in SEK, excluding VAT."]
[]
[null,"Support"]
[null,"Safespring offers several support agreements."]
[null,"Product ID",null,"Description",{"$nulls":4},"Billing per",null,"Monthly"]
[null,"SUPPORT-base",null,"Support for Safespring's services",{"$nulls":4},"N/A",null,0]
[null,"SUPPORT-standard",null,"Access to chat room with support and engineering",{"$nulls":4},"Total volume",null,"3 % of total volume 5"]
[null,"SUPPORT-premium",null,"Dedicated Service Manager with quarterly operations meetings",{"$nulls":4},"Month",null,2140]
[]
[]
[null,"Consulting services"]
[null,"Safespring offers several consulting services."]
[null,"Product ID",null,"Description",{"$nulls":4},"Billing per",null,"Monthly"]
[null,"PS-consult.jun",null,"Cloud Infrastructure Consultant, junior expertise level",{"$nulls":4},"Hour",null,{"$f":"PS_consult.jun_EUR","v":100.303}]
[null,"PS-consult.sen",null,"Cloud infrastructure Consultant, senior expertise level",{"$nulls":4},"Hour",null,{"$f":"PS_consult.sen_EUR","v":122.28599999999999}]
[null,"PS-cloudarch.jun",null,"Cloud Infrastructure Architect Consultant, junior expertise level",{"$nulls":4},"Hour",null,{"$f":"PS_cloudarch.jun_EUR","v":113.65299999999999}]
[null,"PS-cloudarch.sen",null,"Cloud Infrastructure Architect Consultant, senior expertise level",{"$nulls":4},"Hour",null,{"$f":"PS_cloudarch.sen_EUR","v":122.28599999999999}]
[null,"PS-pm.jun",null,"Project Manager, junior expertise level",{"$nulls":4},"Hour",null,{"$f":"PS_pm.jun_EUR","v":101.371}]
[null,"PS-pm.sen",null,"Project Manager, senior expertise level",{"$nulls":4},"Hour",null,{"$f":"PS_pm.sen_EUR","v":122.28599999999999}]
[]
[]
[null,"Educations"]
[null,"Safespring offers several courses in IaaS and cloud services."]
[null,"Product ID",null,"Description",null,null,"Duration",null,"Billing per",null,"Price"]
[null,"COURSE-intro.iaas",null,"Introduction to \"infrastructure as a service\"",null,null,"One day",null,"Occasion",null,560]
[null,"COURSE-cxo.strategy",null,"Cloud strategy for management teams",null,null,"One day",null,"Occasion",null,560]
[null,"COURSE-intro.cloud",null,"Introduction to cloud infrastructure technology",null,null,"Four days",null,"Occasion",null,2230]
[null,"COURSE-devops.microservices",null,"Modern DevOps and \"microservices\"",null,null,"Four days",null,"Occasion",null,2230]
[]
[]
[]
[]
[]
[]
[null,"Monthly cost"]
[]
[]
[null,"All prices stated in SEK, excluding VAT."]
[]
[null,"Contact Safespring for a complete quote"]
[null,"Phone: +46 8-55 10 73 56"]
[null,"hello@safespring.com"]
[]
[null,"Product",{"$nulls":7},"Monthly cost"]
[null,"Safespring Compute",{"$f":"SUM(I26:I37*C26:C37)+SUM(I47:I56*b2_list_Antal_instanser)+SUM(I62:I65*C62:C65)+SUM(I72:I74*C72:C74)&\" vCPU\"&\"     /     \"&SUM(I26:I37*E26)+SUM(b2_list_vCPU*b2_list_ram)+SUM(I62:I65*D62:D65)+SUM(I72:I74*D72:D74)&\" GB RAM\"&\"     /     \"&SUM(I26:I37*E26:E37)+SUM(b2_list_vCPU*E47:E56)+SUM(I62:I65*E62:E65)+SUM(I72:I74*E72:E74)&\" GB  NVMe\"&\"     /     \"&SUM(I81:I83)&\" GB Block storage\"","v":"0 vCPU     /     0 GB RAM     /     0 GB  NVMe     /     0 GB Block storage"},{"$nulls":6},{"$f":"K66+K75+K57+K40+K84","v":0}]
[null,"Safespring Storage",{"$f":"K96&\" TB - S3\"&\"     /     \"&K95&\" TB - Archive\"","v":"0 TB - S3     /     0 TB - Archive"},{"$nulls":6},{"$f":"K97","v":0}]
[null,"Safespring Backup",{"$nulls":7},{"$f":"K121","v":0}]
[null,"Total",{"$nulls":7},{"$f":"SUM(J215:J217)","v":0}]
[]
[]
[]
[]
[null,"1 Deduplication is a data reduction done in the service. Depending on the data, it usually varies between 45% -90%"]
[null,"2 The price is per protected GB on the client."]
[null,"3 The price is per GB stored in the service after deduplication and compression."]
[null,"4 The price is per GB stored in the service after deduplication and compression. The service includes 1000 GB in the fixed monthly price."]
[null,"5 The support fee is charged at 3 % of the total volume with a minimum fee of 150 EUR per month."]

{"sheet":"Data","index":4,"n_rows":76,"n_cols":11,"rows_kept":76,"cut":false,"hidden":true,"merged":[]}
[]
[null,"Safespring Compute",null,"Prissättning","SEK/NOK","EUR",null,null,"Currency Factor"]
[null,"IAAS-ram",null,55,{"$f":"D3*SEK","v":55},{"$f":"D3*EUR","v":4.8949999999999996},null,null,"SEK",null,1]
[null,"IAAS-ssd",null,3.6,3.6,0.32040000000000002,null,null,"EUR",null,8.8999999999999996E-2]
[null,"IAAS-vcpu",null,80,80,7.1199999999999992,null,null,"NOK",null,1]
[null,"IAAS-nvme",null,1,1,8.8999999999999996E-2]
[null,"IAAS-gpu",null,5500,5500,489.5]
[null,"IAAS-pcpu (beräknad)",null,2.66,{"$f":"D8*IAAS_vcpu_SEK*SEK","v":212.8},{"$f":"D8*IAAS_vcpu_SEK*EUR","v":18.9392},null,null,"  Typ","Antal","Pris"]
[{"$nulls":8},"  vCPU",null,{"$f":"J9*IAAS_vcpu_SEK","v":0}]
[{"$nulls":8},"  RAM",null,{"$f":"J10*IAAS_ram_SEK","v":0}]
[{"$nulls":8}," Totalt",null,{"$f":"SUM(K9:K10)","v":0}]
[]
[null,"Bare metal compute",null,"Prissättning","SEK","EUR"]
[null,"INSTANCE-p1.2xlarge.16d",null,{"$f":"INSTANCE_p1.4xlarge.16d_SEK/2","v":6840},{"$f":"D14*SEK","v":6840},{"$f":"D14*EUR","v":608.76}]
[null,"INSTANCE-p1.4xlarge.16d",null,13680,13680,1217.52]
[null,"INSTANCE-p1.8xlarge.32d",null,{"$f":"INSTANCE_p1.4xlarge.16d_SEK*2","v":27360},27360,2435.04]
[]
[null,"Safespring Compute",null,"Prissättning","SEK","EUR"]
[null,"VOLUME-large",null,1.2,1.2,0.10679999999999999]
[null,"VOLUME-fast",null,3.6,3.6,0.32040000000000002]
[]
[null,"Safespring Backup",null,"Prissättning","SEK","EUR"]
[null,"BAAS-on.demand",null,2.4500000000000002,2.4500000000000002,0.21804999999999999]
[null,"BAAS-small.fee",null,5500,5500,489.5]
[null,"BAAS-large.fee",null,9500,9500,845.5]
[null,"BAAS-small",null,1.75,1.75,0.15575]
[null,"BAAS-large",null,0.92,0.92,8.1879999999999994E-2]
[]
[null,"Safespring Storage",null,"Prissättning","SEK","EUR"]
[null,"S3-storage.50",null,500,500,44.5]
[null,"S3-storage.100",null,500,500,44.5]
[null,"S3-storage.500",null,500,500,44.5]
[null,"S3-storage.1000",null,500,500,44.5]
[null,"S3-storage.quote",null,"Be om offert",{"$f":"D34","v":"Be om offert"},"Request a quote"]
[null,"S3-archive.50",null,350,{"$f":"D35*SEK","v":350},31.15]
[null,"S3-archive.100",null,270,270,24.029999999999998]
[null,"S3-archive.500",null,200,200,17.8]
[null,"S3-archive.1000",null,185,185,16.465]
[null,"S3-archive.quote",null,"Be om offert",{"$f":"D39","v":"Be om offert"},"Request a quote"]
[]
[null,"Nätverk",null,"Prissättning","SEK","EUR"]
[null,"NET-publicv4",null,25,{"$f":"D42*SEK","v":25},2.2250000000000001]
[null,"NET-publicv6",null,0,0,0]
[null,"NET-ingress",null,0,0,0]
[null,"NET-egress",null,0,0,0]
[null,"NET-mgn.slb",null,2100,{"$f":"D46","v":2100},186]
[null,"NET-rdns",null,0,0,0]
[null,"NET-saferoute",null,"Begär offert",{"$f":"D48","v":"Begär offert"},"Request a quote"]
[null,"NET-byoip",null,0,{"$f":"D49*SEK","v":0},0]
[]
[null,"Mjukvara",null,"Prissättning","SEK","EUR"]
[null,"SW-win.ser.2016 & 2019",null,175,175,15.574999999999999]
[null,"SW-ms.sql.ser",null,1229,1229,109.381]
[null,"SW-ms.sql.ser.ent",null,4766,4766,424.17399999999998]
[null,"SW-stackn",null,null,"Begär offert","Request a quote"]
[null,"SW-nextcloud",null,70,{"$f":"D56","v":70},6]
[null,"SW-suse",null,null,"Begär offert","Request a quote"]
[null,"SW-cluster.control",null,null,"3x instanspris","3x instance price"]
[null,"SW-backup.ninja",null,400,400,35.6]
[]
[null,"Plattformstjänster",null,"Prissättning","SEK","EUR"]
[null,"PAAS-man.kubernetes24",null," Begär offert ","Begär offert","Request a quote"]
[null,"PAAS-man.kubernetes8",null," Begär offert ","Begär offert","Request a quote"]
[null,"PAAS-man.elasticsearch",null,null,"Begär offert","Request a quote"]
[null,"PAAS-man.redis",null,null,"Begär offert","Request a quote"]
[null,"PAAS-man.nats",null,null,"Begär offert","Request a quote"]
[null,"PAAS-man.mariadb",null,null,"Begär offert","Request a quote"]
[null,"PAAS-openshift",null,0,"Begär offert","Request a quote"]
[]
[null,"Konsulttjänster",null,"Prissättning","SEK","EUR"]
[null,"PS-consult.jun",null,1127,1127,100.303]
[null,"PS-consult.sen",null,1374,1374,122.28599999999999]
[null,"PS-cloudarch.jun",null,1277,1277,113.65299999999999]
[null,"PS-cloudarch.sen",null,1374,1374,122.28599999999999]
[null,"PS-pm.jun",null,1139,1139,101.371]
[null,"PS-pm.sen",null,1374,1374,122.28599999999999]